{"text_format":"1","workbook":"xlsx","n_sheets":6,"sheets":["GMAB Liab","GMAB liab work","GMAB Liab plus Put","GMAB liab PLUS put work","GMAB_RN","GMAB_RN Work"],"not_rendered":{"charts":5,"images":0,"macros":1,"external_links":0,"defined_names":8,"comments":0,"pivot_tables":0},"unopened":[],"bounds":{"document_bytes":16777216,"sheet_cells":100000,"rows_first":2000,"rows_last":500,"rows_between":2000,"halvings":0,"cell_chars":16384,"cell_head_chars":4096},"cells_cut":0,"cells_raw":0,"read":"whole","date_system":"1900"}

{"sheet":"GMAB Liab","index":0,"n_rows":52,"n_cols":15,"rows_kept":52,"cut":false,"hidden":false,"merged":[]}
["GMAB Liabilities"]
[]
[]
[null,"Input"]
[]
[null,"Product asumption"]
[null,"Initial Premium ($)",100000]
[null,"M&E fees",0.01,"(% of fund value)"]
[null,"Expense "]
[null,"Intitial ",0.05,"(% of initial premium)"]
[null,"Ongoing / year",250]
[]
[null,"GMAB features"]
[null,"Guarantee ($)",100000]
[null,"Term (years)",7,"(<= 10)"]
[null,"Rider Fees (bp)",5.0000000000000001E-3,"(% of fund value)"]
[]
[null,"Behavior  /actuarial assumption"]
[null,"Annual lapse rate",0.05]
[]
[null,"Market assumption"]
[null,"Fund return",0.06,"(pre-fees)"]
[]
[]
[null,"Output"]
[]
[]
[]
[]
[]
[]
[]
[]
[]
[]
[]
[]
[]
[]
[]
[]
[]
[]
[]
[]
[]
[]
[]
[]
[]
[]
[null,null,null,null,null,null,null,null,null,null,null,"PV of cash flows at 5%",null,null,{"$f":"'GMAB liab work'!F22","v":2728.603739877823}]

{"sheet":"GMAB liab work","index":1,"n_rows":33,"n_cols":24,"rows_kept":33,"cut":false,"hidden":true,"merged":[]}
["GMAB Work",null,null,null,null,null,null,null,{"$f":"'GMAB Liab'!B8","v":"M&E fees"},{"$f":"'GMAB Liab'!C8","v":0.01}]
[null,null,null,null,null,null,null,null,{"$f":"'GMAB Liab'!B16","v":"Rider Fees (bp)"},{"$f":"'GMAB Liab'!C16","v":5.0000000000000001E-3},null,null,null,null,null,null,null,"CHECK"]
[null,null,"Actuarial",null,null,null,"Fund return no decrement",null,null,null,null,null,null,null,null,null,null,"Cash flows with decrement"]
[null,"Year","tpx ","wx","lapse amount",null,"AV (end of year)","return (%)","return ($)","fees (%)","fees ($)","Guar ($)",null,"Expenses (no decr)",null,null,null,"AV (end of year)","return","Insurer","to policyholder",null,"AV EOY (roll)","Compare"]
[null,0,1,null,null,null,{"$f":"'GMAB Liab'!C7","v":100000},null,null,null,null,null,null,null,null,null,null,{"$f":"G5*C5","v":100000}]
[null,{"$f":"B5+1","v":1},{"$f":"C5*(1-D6)","v":0.95},{"$f":"IF(B6='GMAB Liab'!$C$15,1,'GMAB Liab'!$C$19)","v":0.05},{"$f":"C5-C6","v":5.0000000000000044E-2},null,{"$f":"G5+I6-K6+L6","v":104455},{"$f":"'GMAB Liab'!$C$22","v":0.06},{"$f":"G5*H6","v":6000},{"$f":"$J$1+$J$2","v":1.4999999999999999E-2},{"$f":"MIN((G5+0.5*I6)*J6,G5+I6)","v":1545},{"$f":"IF(B6='GMAB Liab'!$C$15,MAX('GMAB Liab'!$C$14-(G5+I6-K6),0),0)","v":0},null,{"$f":"'GMAB Liab'!C$11+G5*'GMAB Liab'!C10","v":5250},null,null,null,{"$f":"G6*C6","v":99232.25},{"$f":"I6*C5","v":6000},{"$f":"F24","v":-3705},{"$f":"C24","v":5222.7500000000045},null,{"$f":"R5+S6-T6-U6","v":104482.25},{"$f":"W6-R6","v":5250}]
[null,{"$f":"B6+1","v":2},{"$f":"C6*(1-D7)","v":0.90249999999999997},{"$f":"IF(B7='GMAB Liab'!$C$15,1,'GMAB Liab'!$C$19)","v":0.05},{"$f":"C6-C7","v":4.7499999999999987E-2},null,{"$f":"G6+I7-K7+L7","v":109108.47025},{"$f":"'GMAB Liab'!$C$22","v":0.06},{"$f":"G6*H7","v":6267.3},{"$f":"$J$1+$J$2","v":1.4999999999999999E-2},{"$f":"MIN((G6+0.5*I7)*J7,G6+I7)","v":1613.8297499999999},{"$f":"IF(B7='GMAB Liab'!$C$15,MAX('GMAB Liab'!$C$14-(G6+I7-K7),0),0)","v":0},null,{"$f":"'GMAB Liab'!C$11","v":250},null,null,null,98470.394400624995,{"$f":"I7*C6","v":5953.9349999999995},1295.6382624999999,5182.6523368749986,null,{"$f":"R6+S7-T7-U7","v":98707.894400624995},{"$f":"W7-R7","v":237.5}]
[null,3,0.85737499999999989,{"$f":"IF(B8='GMAB Liab'!$C$15,1,'GMAB Liab'!$C$19)","v":0.05},4.5125000000000082E-2,null,113969.25259963749,{"$f":"'GMAB Liab'!$C$22","v":0.06},6546.5082149999998,1.4999999999999999E-2,1685.7258653624999,{"$f":"IF(B8='GMAB Liab'!$C$15,MAX('GMAB Liab'!$C$14-(G7+I8-K8),0),0)","v":0},null,{"$f":"'GMAB Liab'!C$11","v":250},null,null,null,97714.387947614174,5908.2236640374995,1295.7425934896562,5142.8625235586514,null,97940.012947614188,225.62500000001455]
[null,4,0.81450624999999988,{"$f":"IF(B9='GMAB Liab'!$C$15,1,'GMAB Liab'!$C$19)","v":0.05},4.2868750000000011E-2,null,119046.58280295135,{"$f":"'GMAB Liab'!$C$22","v":0.06},6838.1551559782492,1.4999999999999999E-2,1760.8249526643992,{"$f":"IF(B9='GMAB Liab'!$C$15,MAX('GMAB Liab'!$C$14-(G8+I9-K9),0),0)","v":0},null,{"$f":"'GMAB Liab'!C$11","v":250},null,null,null,96964.185734146376,5862.8632768568505,1295.3435437906392,5103.3781965340222,null,97178.529484146362,214.34374999998545]
[null,5,0.77378093749999988,{"$f":"IF(B10='GMAB Liab'!$C$15,1,'GMAB Liab'!$C$19)","v":0.05},4.0725312499999999E-2,null,124350.10806682284,{"$f":"'GMAB Liab'!$C$22","v":0.06},7142.7949681770806,1.4999999999999999E-2,1839.2697043055982,{"$f":"IF(B10='GMAB Liab'!$C$15,MAX('GMAB Liab'!$C$14-(G9+I10-K10),0),0)","v":0},null,{"$f":"'GMAB Liab'!C$11","v":250},null,null,null,96219.74319817248,5817.8511440487828,1294.4701070925616,5064.1970104301308,null,96423.36976067246,203.62656249997963]
[null,6,0.7350918906249998,{"$f":"IF(B11='GMAB Liab'!$C$15,1,'GMAB Liab'!$C$19)","v":0.05},3.8689046875000077E-2,null,129889.90538119982,{"$f":"'GMAB Liab'!$C$22","v":0.06},7461.0064840093701,1.4999999999999999E-2,1921.2091696324128,{"$f":"IF(B11='GMAB Liab'!$C$15,MAX('GMAB Liab'!$C$14-(G10+I11-K11),0),0)","v":0},null,{"$f":"'GMAB Liab'!C$11","v":250},null,null,null,95481.016119768508,5773.1845918903482,1293.1497980367647,5025.3166378825645,null,95674.461354143481,193.44523437497264]
[null,7,0,{"$f":"IF(B12='GMAB Liab'!$C$15,1,'GMAB Liab'!$C$19)","v":1},0.7350918906249998,null,135676.50066593225,{"$f":"'GMAB Liab'!$C$22","v":0.06},7793.3943228719891,1.4999999999999999E-2,2006.7990381395371,{"$f":"IF(B12='GMAB Liab'!$C$15,MAX('GMAB Liab'!$C$14-(G11+I12-K12),0),0)","v":0},null,{"$f":"'GMAB Liab'!C$11","v":250},null,null,null,0,5728.8609671861104,1291.4087263941733,99734.695387904183,null,183.77297265625384,183.77297265625384]
[null,8,0,{"$f":"IF(B13='GMAB Liab'!$C$15,1,'GMAB Liab'!$C$19)","v":0.05},0,null,141720.88877059956,{"$f":"'GMAB Liab'!$C$22","v":0.06},8140.590039955935,1.4999999999999999E-2,2096.2019352886532,{"$f":"IF(B13='GMAB Liab'!$C$15,MAX('GMAB Liab'!$C$14-(G12+I13-K13),0),0)","v":0},null,{"$f":"'GMAB Liab'!C$11","v":250},null,null,null,0,0,0,0,null,0,0]
[null,9,0,{"$f":"IF(B14='GMAB Liab'!$C$15,1,'GMAB Liab'!$C$19)","v":0.05},0,null,148034.55436532976,{"$f":"'GMAB Liab'!$C$22","v":0.06},8503.2533262359739,1.4999999999999999E-2,2189.5877315057633,{"$f":"IF(B14='GMAB Liab'!$C$15,MAX('GMAB Liab'!$C$14-(G13+I14-K14),0),0)","v":0},null,{"$f":"'GMAB Liab'!C$11","v":250},null,null,null,0,0,0,0,null,0,0]
[null,10,0,{"$f":"IF(B15='GMAB Liab'!$C$15,1,'GMAB Liab'!$C$19)","v":0.05},0,null,154629.49376230521,{"$f":"'GMAB Liab'!$C$22","v":0.06},8882.0732619197861,1.4999999999999999E-2,2287.1338649443446,{"$f":"IF(B15='GMAB Liab'!$C$15,MAX('GMAB Liab'!$C$14-(G14+I15-K15),0),0)","v":0},null,{"$f":"'GMAB Liab'!C$11","v":250},null,null,null,0,0,0,0,null,0,0]
[null,null,null,null,null,null,null,null,null,null,null,null,null,null,null,null,null,{"$f":"G16*C16","v":0},{"$f":"I16*C15","v":0},{"$f":"F34","v":0},{"$f":"C34","v":0},null,{"$f":"R15+S16-T16-U16","v":0},{"$f":"W16-R16","v":0}]
[]
[]
[]
[]
[]
[null,"Graphs",null,null,null,{"$f":"NPV(5%,F24:F33)","v":2728.603739877823}]
[null,"Year","Cashflow to policyholder",null,"Year","Cash flow to Insurer"]
[null,{"$f":"B6","v":1},{"$f":"E6*G6","v":5222.7500000000045},null,{"$f":"B24","v":1},{"$f":"C5*(K6-L6)-N6*C5","v":-3705}]
[null,2,5182.6523368749986,null,{"$f":"B25","v":2},{"$f":"C6*(K7-L7)-N7*C6","v":1295.6382624999999}]
[null,3,5142.8625235586514,null,3,1295.7425934896562]
[null,4,5103.3781965340222,null,4,1295.3435437906392]
[null,5,5064.1970104301308,null,5,1294.4701070925616]
[null,6,5025.3166378825645,null,6,1293.1497980367647]
[null,7,99734.695387904183,null,7,1291.4087263941733]
[null,8,0,null,8,0]
[null,9,0,null,9,0]
[null,10,0,null,10,0]

{"sheet":"GMAB Liab plus Put","index":2,"n_rows":55,"n_cols":11,"rows_kept":55,"cut":false,"hidden":false,"merged":[]}
["GMAB Liabilities With a Put Option"]
[]
[]
[null,"Input"]
[]
[null,"Product asumption",null,null,null,null,null,"Add asset -- European Put"]
[null,"Initial Premium ($)",{"$f":"'GMAB Liab'!C7","v":100000},null,null,null,null,"Current fund level",null,1000,"(e.g., S&P or whatever is most relevant)"]
[null,"M&E fees",{"$f":"'GMAB Liab'!C8","v":0.01},"(% of fund value)"]
[null,"Expense ",null,null,null,null,null,"Put (Notional based on 5% lapse assumption)"]
[null,"Intitial ",{"$f":"'GMAB Liab'!C10","v":0.05},"(% of initial premium)",null,null,null,"Term",{"$f":"C15","v":7}]
[null,"Ongoing / year",{"$f":"'GMAB Liab'!C11","v":250},null,null,null,null,"Strike",{"$f":"J7*C14/(C7*(1-C8-C16)^C15)","v":1111.5944929072757}]
[null,null,null,null,null,null,null,"Notional",{"$f":"C7/J7*(1-5%)^C15","v":69.833729609374998}]
[null,"GMAB features"]
[null,"Guarantee ($)",{"$f":"'GMAB Liab'!C14","v":100000},null,null,null,null,"Payoff = $ Notional * max (strike - fund at term,0) In other words this is $ per point."]
[null,"Term (years)",{"$f":"'GMAB Liab'!C15","v":7},"(<= 10)"]
[null,"Rider Fees (bp)",{"$f":"'GMAB Liab'!C16","v":5.0000000000000001E-3},"(% of fund value)",null,null,null,"Put cost",{"$f":"'GMAB liab PLUS put work'!R23","v":3992.2939600997502},"(this is based on hidden BS model -- but don't worry about this here)"]
[]
[null,"Behavior  /actuarial assumption"]
[null,"Annual lapse rate",{"$f":"'GMAB Liab'!C19","v":0.05}]
[]
[null,"Market assumption"]
[null,"Fund return",0.06,"(pre-fees)"]
[]
[]
[null,"Output"]
[]
[]
[]
[]
[]
[]
[]
[]
[]
[]
[]
[]
[]
[]
[]
[]
[]
[]
[]
[]
[]
[]
[]
[]
[]
[]
[null,"PV of cash flows at 5%"]
[null,"Excluding Put",null,null,{"$f":"'GMAB liab PLUS put work'!F22","v":2728.603739877823}]
[null,"Put cash flow",null,null,{"$f":"'GMAB liab PLUS put work'!G22","v":-3802.1847239045237}]
[null,"Total cash flow",null,null,{"$f":"'GMAB liab PLUS put work'!H22","v":-1073.5809840267007}]

{"sheet":"GMAB liab PLUS put work","index":3,"n_rows":33,"n_cols":30,"rows_kept":33,"cut":false,"hidden":true,"merged":[]}
["GMAB Work",null,null,null,null,null,null,null,{"$f":"'GMAB Liab plus Put'!B8","v":"M&E fees"},{"$f":"'GMAB Liab plus Put'!C8","v":0.01}]
[null,null,null,null,null,null,null,null,{"$f":"'GMAB Liab plus Put'!B16","v":"Rider Fees (bp)"},{"$f":"'GMAB Liab plus Put'!C16","v":5.0000000000000001E-3},null,null,null,null,null,null,null,null,null,null,null,null,null,"CHECK"]
[null,null,"Actuarial",null,null,null,"Fund return no decrement",null,null,null,null,null,null,null,null,null,{"$f":"NPV(5%,Q5:Q14)","v":-3802.1847239045237},null,null,null,null,null,null,"Cash flows with decrement"]
[null,"Year","tpx ","wx","lapse amount",null,"AV (end of year)","return (%)","return ($)","fees (%)","fees ($)","Guar ($)",null,"Expenses (no decr)",null,null,"Put Payoff",null,null,null,null,null,null,"AV (end of year)","return","Insurer","to policyholder",null,"AV EOY (roll)","Compare"]
[null,0,1,null,null,null,{"$f":"'GMAB Liab plus Put'!C7","v":100000},null,null,null,null,null,null,null,null,{"$f":"'GMAB Liab plus Put'!J7","v":1000},null,null,null,null,null,null,null,{"$f":"G5*C5","v":100000}]
[null,{"$f":"B5+1","v":1},{"$f":"C5*(1-D6)","v":0.95},{"$f":"IF(B6='GMAB Liab plus Put'!$C$15,1,'GMAB Liab plus Put'!$C$19)","v":0.05},{"$f":"C5-C6","v":5.0000000000000044E-2},null,{"$f":"G5+I6-K6+L6","v":104455},{"$f":"'GMAB Liab plus Put'!$C$22","v":0.06},{"$f":"G5*H6","v":6000},{"$f":"$J$1+$J$2","v":1.4999999999999999E-2},{"$f":"MIN((G5+0.5*I6)*J6,G5+I6)","v":1545},{"$f":"IF(B6='GMAB Liab plus Put'!$C$15,MAX('GMAB Liab plus Put'!$C$14-(G5+I6-K6),0),0)","v":0},null,{"$f":"'GMAB Liab plus Put'!C$11+G5*'GMAB Liab plus Put'!C10","v":5250},null,{"$f":"P5*(1+H6)","v":1060},{"$f":"IF(B6='GMAB Liab plus Put'!$I$10,MAX('GMAB Liab plus Put'!$I$11-P6,0),0)*'GMAB Liab plus Put'!$I$12-R23","v":-3992.2939600997502},null,null,null,null,null,null,99232.25,{"$f":"I6*C5","v":6000},{"$f":"F24","v":-3705},{"$f":"C24","v":5222.7500000000045},null,{"$f":"X5+Y6-Z6-AA6","v":104482.25},{"$f":"AC6-X6","v":5250}]
[null,2,0.90249999999999997,{"$f":"IF(B7='GMAB Liab plus Put'!$C$15,1,'GMAB Liab plus Put'!$C$19)","v":0.05},4.7499999999999987E-2,null,109108.47025,{"$f":"'GMAB Liab plus Put'!$C$22","v":0.06},6267.3,1.4999999999999999E-2,1613.8297499999999,{"$f":"IF(B7='GMAB Liab plus Put'!$C$15,MAX('GMAB Liab plus Put'!$C$14-(G6+I7-K7),0),0)","v":0},null,{"$f":"'GMAB Liab plus Put'!C$11","v":250},null,{"$f":"P6*(1+H7)","v":1123.6000000000001},{"$f":"IF(B7='GMAB Liab plus Put'!$I$10,MAX('GMAB Liab plus Put'!$I$11-P7,0),0)*'GMAB Liab plus Put'!$I$12","v":0},null,null,null,null,null,null,98470.394400624995,5953.9349999999995,1295.6382624999999,5182.6523368749986,null,98707.894400624995,237.5]
[null,3,0.85737499999999989,{"$f":"IF(B8='GMAB Liab plus Put'!$C$15,1,'GMAB Liab plus Put'!$C$19)","v":0.05},4.5125000000000082E-2,null,113969.25259963749,{"$f":"'GMAB Liab plus Put'!$C$22","v":0.06},6546.5082149999998,1.4999999999999999E-2,1685.7258653624999,{"$f":"IF(B8='GMAB Liab plus Put'!$C$15,MAX('GMAB Liab plus Put'!$C$14-(G7+I8-K8),0),0)","v":0},null,{"$f":"'GMAB Liab plus Put'!C$11","v":250},null,1191.0160000000003,{"$f":"IF(B8='GMAB Liab plus Put'!$I$10,MAX('GMAB Liab plus Put'!$I$11-P8,0),0)*'GMAB Liab plus Put'!$I$12","v":0},null,null,null,null,null,null,97714.387947614174,5908.2236640374995,1295.7425934896562,5142.8625235586514,null,97940.012947614188,225.62500000001455]
[null,4,0.81450624999999988,{"$f":"IF(B9='GMAB Liab plus Put'!$C$15,1,'GMAB Liab plus Put'!$C$19)","v":0.05},4.2868750000000011E-2,null,119046.58280295135,{"$f":"'GMAB Liab plus Put'!$C$22","v":0.06},6838.1551559782492,1.4999999999999999E-2,1760.8249526643992,{"$f":"IF(B9='GMAB Liab plus Put'!$C$15,MAX('GMAB Liab plus Put'!$C$14-(G8+I9-K9),0),0)","v":0},null,{"$f":"'GMAB Liab plus Put'!C$11","v":250},null,1262.4769600000004,{"$f":"IF(B9='GMAB Liab plus Put'!$I$10,MAX('GMAB Liab plus Put'!$I$11-P9,0),0)*'GMAB Liab plus Put'!$I$12","v":0},null,null,null,null,null,null,96964.185734146376,5862.8632768568505,1295.3435437906392,5103.3781965340222,null,97178.529484146362,214.34374999998545]
[null,5,0.77378093749999988,{"$f":"IF(B10='GMAB Liab plus Put'!$C$15,1,'GMAB Liab plus Put'!$C$19)","v":0.05},4.0725312499999999E-2,null,124350.10806682284,{"$f":"'GMAB Liab plus Put'!$C$22","v":0.06},7142.7949681770806,1.4999999999999999E-2,1839.2697043055982,{"$f":"IF(B10='GMAB Liab plus Put'!$C$15,MAX('GMAB Liab plus Put'!$C$14-(G9+I10-K10),0),0)","v":0},null,{"$f":"'GMAB Liab plus Put'!C$11","v":250},null,1338.2255776000004,{"$f":"IF(B10='GMAB Liab plus Put'!$I$10,MAX('GMAB Liab plus Put'!$I$11-P10,0),0)*'GMAB Liab plus Put'!$I$12","v":0},null,null,null,null,null,null,96219.74319817248,5817.8511440487828,1294.4701070925616,5064.1970104301308,null,96423.36976067246,203.62656249997963]
[null,6,0.7350918906249998,{"$f":"IF(B11='GMAB Liab plus Put'!$C$15,1,'GMAB Liab plus Put'!$C$19)","v":0.05},3.8689046875000077E-2,null,129889.90538119982,{"$f":"'GMAB Liab plus Put'!$C$22","v":0.06},7461.0064840093701,1.4999999999999999E-2,1921.2091696324128,{"$f":"IF(B11='GMAB Liab plus Put'!$C$15,MAX('GMAB Liab plus Put'!$C$14-(G10+I11-K11),0),0)","v":0},null,{"$f":"'GMAB Liab plus Put'!C$11","v":250},null,1418.5191122560004,{"$f":"IF(B11='GMAB Liab plus Put'!$I$10,MAX('GMAB Liab plus Put'!$I$11-P11,0),0)*'GMAB Liab plus Put'!$I$12","v":0},null,null,null,null,null,null,95481.016119768508,5773.1845918903482,1293.1497980367647,5025.3166378825645,null,95674.461354143481,193.44523437497264]
[null,7,0,{"$f":"IF(B12='GMAB Liab plus Put'!$C$15,1,'GMAB Liab plus Put'!$C$19)","v":1},0.7350918906249998,null,135676.50066593225,{"$f":"'GMAB Liab plus Put'!$C$22","v":0.06},7793.3943228719891,1.4999999999999999E-2,2006.7990381395371,{"$f":"IF(B12='GMAB Liab plus Put'!$C$15,MAX('GMAB Liab plus Put'!$C$14-(G11+I12-K12),0),0)","v":0},null,{"$f":"'GMAB Liab plus Put'!C$11","v":250},null,1503.6302589913605,{"$f":"IF(B12='GMAB Liab plus Put'!$I$10,MAX('GMAB Liab plus Put'!$I$11-P12,0),0)*'GMAB Liab plus Put'!$I$12","v":0},{"$f":"Q12/'GMAB Liab plus Put'!I12","v":0},{"$f":"P12+R12","v":1503.6302589913605},null,null,null,null,0,5728.8609671861104,1291.4087263941733,99734.695387904183,null,183.77297265625384,183.77297265625384]
[null,8,0,{"$f":"IF(B13='GMAB Liab plus Put'!$C$15,1,'GMAB Liab plus Put'!$C$19)","v":0.05},0,null,141720.88877059956,{"$f":"'GMAB Liab plus Put'!$C$22","v":0.06},8140.590039955935,1.4999999999999999E-2,2096.2019352886532,{"$f":"IF(B13='GMAB Liab plus Put'!$C$15,MAX('GMAB Liab plus Put'!$C$14-(G12+I13-K13),0),0)","v":0},null,{"$f":"'GMAB Liab plus Put'!C$11","v":250},null,1593.8480745308423,{"$f":"IF(B13='GMAB Liab plus Put'!$I$10,MAX('GMAB Liab plus Put'!$I$11-P13,0),0)*'GMAB Liab plus Put'!$I$12","v":0},{"$f":"L12*C11/'GMAB Liab plus Put'!I12","v":0},{"$f":"P12+R13","v":1503.6302589913605},null,null,null,null,0,0,0,0,null,0,0]
[null,9,0,{"$f":"IF(B14='GMAB Liab plus Put'!$C$15,1,'GMAB Liab plus Put'!$C$19)","v":0.05},0,null,148034.55436532976,{"$f":"'GMAB Liab plus Put'!$C$22","v":0.06},8503.2533262359739,1.4999999999999999E-2,2189.5877315057633,{"$f":"IF(B14='GMAB Liab plus Put'!$C$15,MAX('GMAB Liab plus Put'!$C$14-(G13+I14-K14),0),0)","v":0},null,{"$f":"'GMAB Liab plus Put'!C$11","v":250},null,1689.4789590026928,{"$f":"IF(B14='GMAB Liab plus Put'!$I$10,MAX('GMAB Liab plus Put'!$I$11-P14,0),0)*'GMAB Liab plus Put'!$I$12","v":0},null,null,null,null,null,null,0,0,0,0,null,0,0]
[null,10,0,{"$f":"IF(B15='GMAB Liab plus Put'!$C$15,1,'GMAB Liab plus Put'!$C$19)","v":0.05},0,null,154629.49376230521,{"$f":"'GMAB Liab plus Put'!$C$22","v":0.06},8882.0732619197861,1.4999999999999999E-2,2287.1338649443446,{"$f":"IF(B15='GMAB Liab plus Put'!$C$15,MAX('GMAB Liab plus Put'!$C$14-(G14+I15-K15),0),0)","v":0},null,{"$f":"'GMAB Liab plus Put'!C$11","v":250},null,1790.8476965428545,{"$f":"IF(B15='GMAB Liab plus Put'!$I$10,MAX('GMAB Liab plus Put'!$I$11-P15,0),0)*'GMAB Liab plus Put'!$I$12","v":0},null,null,null,null,null,null,0,0,0,0,null,{"$f":"X14+Y15-Z15-AA15","v":0},{"$f":"AC15-X15","v":0}]
[null,null,null,null,null,null,null,null,null,null,null,null,null,null,null,null,null,null,null,null,null,null,null,0,0,0,0,null,{"$f":"X15+Y16-Z16-AA16","v":0},{"$f":"AC16-X16","v":0}]
[null,null,null,null,null,null,null,null,null,null,null,null,null,null,null,null,"r",0.05]
[null,null,null,null,null,null,null,null,null,null,null,null,null,null,null,null,"sigma",0.15]
[]
[null,null,null,null,null,null,null,null,null,null,null,null,null,null,null,null,"d1",{"$f":"(LN('GMAB Liab plus Put'!J7/'GMAB Liab plus Put'!I11)+(R17+0.5*R18^2)*'GMAB Liab plus Put'!I10)/(R18*SQRT('GMAB Liab plus Put'!I10))","v":0.81376893834543895}]
[null,null,null,null,null,null,null,null,null,null,null,null,null,null,null,null,"d2",{"$f":"R20-R18*SQRT('GMAB Liab plus Put'!I10)","v":0.41690624168575036}]
[null,"Graphs",null,null,null,{"$f":"NPV(5%,F24:F33)","v":2728.603739877823},{"$f":"NPV(5%,G24:G33)","v":-3802.1847239045237},{"$f":"NPV(5%,H24:H33)","v":-1073.5809840267007},null,null,null,null,null,null,null,null,"Put ($1)",{"$f":"'GMAB Liab plus Put'!I11*EXP(-'GMAB Liab plus Put'!I10*R17)*NORMSDIST(-R21)-'GMAB Liab plus Put'!J7*NORMSDIST(-R20)","v":57.168562848228504},{"$f":"gmabvalue2()","v":{"$error":"#VALUE!"}}]
[null,"Year","Cashflow to policyholder",null,"Year","Cash flow to Insurer",{"$f":"Q4","v":"Put Payoff"},"Total CF",null,null,null,null,null,null,null,null,"Put Price",{"$f":"R22*'GMAB Liab plus Put'!I12","v":3992.2939600997502}]
[null,{"$f":"B6","v":1},{"$f":"E6*G6","v":5222.7500000000045},null,{"$f":"B24","v":1},{"$f":"C5*(K6-L6)-N6*C5","v":-3705},{"$f":"Q6","v":-3992.2939600997502},{"$f":"G24+F24","v":-7697.2939600997506}]
[null,2,5182.6523368749986,null,2,1295.6382624999999,{"$f":"Q7","v":0},{"$f":"G25+F25","v":1295.6382624999999}]
[null,3,5142.8625235586514,null,3,1295.7425934896562,0,1295.7425934896562]
[null,4,5103.3781965340222,null,4,1295.3435437906392,0,1295.3435437906392]
[null,5,5064.1970104301308,null,5,1294.4701070925616,0,1294.4701070925616]
[null,6,5025.3166378825645,null,6,1293.1497980367647,0,1293.1497980367647]
[null,7,99734.695387904183,null,7,1291.4087263941733,0,1291.4087263941733]
[null,8,0,null,8,0,0,0]
[null,9,0,null,9,0,0,0]
[null,10,0,null,10,0,0,0]

{"sheet":"GMAB_RN","index":4,"n_rows":106,"n_cols":12,"rows_kept":106,"cut":false,"hidden":false,"merged":[]}
["Value a GMAB Liability Using Risk-Neutral Scenarios"]
[]
[]
[null,"Input"]
[null,"Product asumption"]
[null,"Initial Premium ($)",{"$f":"'GMAB Liab'!C7","v":100000}]
[null,"M&E fees",{"$f":"'GMAB Liab'!C8","v":0.01},"(% of fund value)"]
[null,"Expense "]
[null,"Intitial ",{"$f":"'GMAB Liab'!C10","v":0.05},"(% of initial premium)"]
[null,"Ongoing / year",{"$f":"'GMAB Liab'!C11","v":250}]
[]
[null,"GMAB features"]
[null,"Guarantee ($)",{"$f":"'GMAB Liab'!C14","v":100000}]
[null,"Term (years)",{"$f":"'GMAB Liab'!C15","v":7},"(<= 10)"]
[null,"Fees (bp)",{"$f":"'GMAB Liab'!C16","v":5.0000000000000001E-3},"(% of fund value)"]
[]
[null,"Behavior  /actuarial assumption"]
[null,"Annual lapse rate",{"$f":"'GMAB Liab'!C19","v":0.05}]
[]
[null,"Market parameters"]
[null,"Expected return on the policyholder funds",0.08,"(used in real world models)"]
[null,"Risk-free rate",0.03,"(flat yield curve)"]
[null,"Sigma (standard deviation of fund return)",0.2,"(flat volatility surface)"]
[]
[]
[]
[null,"Output -- Single Scenario"]
[]
[]
[]
[]
[]
[]
[]
[]
[]
[]
[]
[]
[]
[]
[]
[]
[]
[]
[]
[]
[]
[null,"PART 2 -- UNGROUP TO SHOW"]
[null,"Monte Carlo parameters"]
[null,"Risk-neutral or real-world ?","RW","(RN/RW)"]
[null,"# of scenarios to run",500,"(max 5000)"]
[null,"random # generator seed",6,"<-- described in text"]
[]
[]
[]
[null,"Output -- Price the option"]
[null,"Monte-Carlo output (CTE 0, i.e., average)",0,"<-- this is the result of multiple risk-neutral runs"]
[null,"Closed form formula",{"$f":"gmabvalue2(C14,C6*(1+C104),C13,C7+C15,C15,C18,C22+C105,C23+C106,0,1)","v":7237.7600528781259},"<-- this is from a closed form formula, similar to (but not identical to) Black-Scholes"]
[]
[]
[null,"PART 3 -- UNGROUP TO SHOW"]
[null,"Output -- Price the option 10 Times"]
[null,"Monte carlo #1",0]
[null,"Monte carlo #2",0]
[null,"Monte carlo #3",0]
[null,"Monte carlo #4",0]
[null,"Monte carlo #5",0]
[null,"Monte carlo #6",0]
[null,"Monte carlo #7",0]
[null,"Monte carlo #8",0]
[null,"Monte carlo #9",0]
[null,"Monte carlo #10",0]
[]
[null,"Average run result",{"$f":"AVERAGE(C64:C73)","v":0},"<-- This should converge to the closed form solution (if one exists … as it does here)"]
[null,"Standard deviation of run results",{"$f":"STDEV(C64:C73)","v":0},"<-- Ideally this should be small, otherwise we need to increase the number of scenarios."]
[]
[]
[]
[null,"PART 4 -- UNGROUP TO SHOW"]
[null,null,null,null,null,null,null,null,null,null,null,5]
[]
[]
[]
[]
[]
[]
[]
[]
[]
[]
[]
[]
[]
[]
[]
[]
[]
[]
[]
[]
[null,"PART 5 -- UNGROUP TO SHOW"]
[null,"SHOCK"]
[null,"Equity",0]
[null,"Interest rate",0]
[null,"Vol",0]

{"sheet":"GMAB_RN Work","index":5,"n_rows":1023,"n_cols":25,"rows_kept":1023,"cut":false,"hidden":true,"merged":[]}
["GMAB Work",null,null,null,null,null,null,null,{"$f":"GMAB_RN!B7","v":"M&E fees"},{"$f":"GMAB_RN!C7","v":0.01},null,null,null,null,null,null,null,null,null,null,null,null,null,"Histogram"]
[null,null,null,null,null,"Immediate equityshock",{"$f":"GMAB_RN!C104","v":0},null,{"$f":"GMAB_RN!B15","v":"Fees (bp)"},{"$f":"GMAB_RN!C15","v":5.0000000000000001E-3},null,null,null,null,null,null,null,"flip to MOY for expenses and fees ?",null,null,null,null,null,null,0]
[null,null,"Actuarial",null,null,null,"Fund return no decrement",null,null,null,null,null,null,null,null,null,null,null,null,null,null,{"$f":"MIN(M24:M5023)","v":-9643.3799999999992},null,{"$f":"V6","v":-11000},{"$f":"COUNTIF($M$24:$M$5023,\"<=\"&X3)-SUM(Y2:Y$2)","v":0}]
[null,"Year","tpx ","wx","lapse amount",null,"AV (end of year)","return (%)","return ($)","fees (%)","fees ($)","Rider fees","Guar ($)",null,"Expenses (no decr)",null,null,null,null,null,null,{"$f":"MAX(M24:M5023)","v":28959.98},null,{"$f":"X3+$V$8","v":-10196.078431372549},{"$f":"COUNTIF($M$24:$M$5023,\"<=\"&X4)-SUM(Y$2:Y3)","v":0}]
[null,0,1,null,null,null,{"$f":"GMAB_RN!C6*(1+G2)","v":100000},null,null,null,null,null,null,null,null,null,null,null,null,null,null,51,null,{"$f":"X4+$V$8","v":-9392.1568627450979},{"$f":"COUNTIF($M$24:$M$5023,\"<=\"&X5)-SUM(Y$2:Y4)","v":1}]
[null,{"$f":"B5+1","v":1},{"$f":"C5*(1-D6)","v":0.95},{"$f":"IF(B6=GMAB_RN!$C$14,1,GMAB_RN!$C$18)","v":0.05},{"$f":"C5-C6","v":5.0000000000000044E-2},126000.11645843051,{"$f":"G5+I6-K6+M6","v":90540.418124914591},{"$f":"F26","v":-8.0807937818126008E-2},{"$f":"G5*H6","v":-8080.7937818126011},{"$f":"J1+J2","v":1.4999999999999999E-2},{"$f":"MIN((G5+I6)*J6,G5+I6)","v":1378.788093272811},{"$f":"K6*($J$2/$J$6)","v":459.59603109093706},{"$f":"IF(B6=GMAB_RN!$C$14,MAX(GMAB_RN!$C$13-(G5+I6-K6),0),0)","v":0},null,{"$f":"GMAB_RN!C10+G5*GMAB_RN!C9","v":5250},null,null,null,null,null,null,{"$f":"ROUND(V3,-3)-1000","v":-11000},null,-8588.2352941176468,{"$f":"COUNTIF($M$24:$M$5023,\"<=\"&X6)-SUM(Y$2:Y5)","v":0}]
[null,{"$f":"B6+1","v":2},{"$f":"C6*(1-D7)","v":0.90249999999999997},{"$f":"IF(B7=GMAB_RN!$C$14,1,GMAB_RN!$C$18)","v":0.05},{"$f":"C6-C7","v":4.7499999999999987E-2},94622.221657718866,{"$f":"G6+I7-K7+M7","v":74323.911287469105},-0.16660703514903474,-15084.670624945948,{"$f":"J6","v":1.4999999999999999E-2},{"$f":"MIN((G6+I7)*J7,G6+I7)","v":1131.8362124995294},{"$f":"K7*($J$2/$J$6)","v":377.2787374998432},{"$f":"IF(B7=GMAB_RN!$C$14,MAX(GMAB_RN!$C$13-(G6+I7-K7),0),0)","v":0},null,{"$f":"GMAB_RN!$C$10","v":250},null,null,null,null,null,null,{"$f":"ROUND(V4,-3)+1000","v":30000},null,-7784.3137254901958,{"$f":"COUNTIF($M$24:$M$5023,\"<=\"&X7)-SUM(Y$2:Y6)","v":0}]
[null,3,0.85737499999999989,{"$f":"IF(B8=GMAB_RN!$C$14,1,GMAB_RN!$C$18)","v":0.05},4.5125000000000082E-2,107424.21730129697,57569.327226387475,-0.21363103103304848,-15877.893798750854,{"$f":"J7","v":1.4999999999999999E-2},876.69026233077375,292.23008744359129,{"$f":"IF(B8=GMAB_RN!$C$14,MAX(GMAB_RN!$C$13-(G7+I8-K8),0),0)","v":0},null,{"$f":"GMAB_RN!$C$10","v":250},null,null,null,null,null,null,{"$f":"(V7-V6)/V5","v":803.92156862745094},null,-6980.3921568627447,{"$f":"COUNTIF($M$24:$M$5023,\"<=\"&X8)-SUM(Y$2:Y7)","v":1}]
[null,4,0.81450624999999988,{"$f":"IF(B9=GMAB_RN!$C$14,1,GMAB_RN!$C$18)","v":0.05},4.2868750000000011E-2,129970.30623773717,57198.498497003267,8.6889046482787613E-3,500.21439493563918,1.4999999999999999E-2,871.0431243198467,290.34770810661558,{"$f":"IF(B9=GMAB_RN!$C$14,MAX(GMAB_RN!$C$13-(G8+I9-K9),0),0)","v":0},null,{"$f":"GMAB_RN!$C$10","v":250},null,null,null,null,null,null,null,null,-6176.4705882352937,{"$f":"COUNTIF($M$24:$M$5023,\"<=\"&X9)-SUM(Y$2:Y8)","v":3}]
[null,5,0.77378093749999988,{"$f":"IF(B10=GMAB_RN!$C$14,1,GMAB_RN!$C$18)","v":0.05},4.0725312499999999E-2,119086.01564725036,64583.583558618739,0.14630788622296298,8368.591410223873,1.4999999999999999E-2,983.50634860840705,327.83544953613574,{"$f":"IF(B10=GMAB_RN!$C$14,MAX(GMAB_RN!$C$13-(G9+I10-K10),0),0)","v":0},null,{"$f":"GMAB_RN!$C$10","v":250},null,null,null,null,null,null,null,null,-5372.5490196078426,{"$f":"COUNTIF($M$24:$M$5023,\"<=\"&X10)-SUM(Y$2:Y9)","v":4}]
[null,6,0.7350918906249998,{"$f":"IF(B11=GMAB_RN!$C$14,1,GMAB_RN!$C$18)","v":0.05},3.8689046875000077E-2,127803.83973620078,60815.79253067344,-4.3999760482507533E-2,-2841.6622076812359,1.4999999999999999E-2,926.12882026406248,308.70960675468751,{"$f":"IF(B11=GMAB_RN!$C$14,MAX(GMAB_RN!$C$13-(G10+I11-K11),0),0)","v":0},null,{"$f":"GMAB_RN!$C$10","v":250},null,null,null,null,null,null,null,null,-4568.6274509803916,{"$f":"COUNTIF($M$24:$M$5023,\"<=\"&X11)-SUM(Y$2:Y10)","v":20}]
[null,7,0,{"$f":"IF(B12=GMAB_RN!$C$14,1,GMAB_RN!$C$18)","v":1},0.7350918906249998,124390.57556068653,100000,0.27471348351061131,16706.918218559917,1.4999999999999999E-2,1162.8406612385004,387.61355374616682,{"$f":"IF(B12=GMAB_RN!$C$14,MAX(GMAB_RN!$C$13-(G11+I12-K12),0),0)","v":23640.129912005141},null,{"$f":"GMAB_RN!$C$10","v":250},null,null,null,null,null,null,null,null,-3764.7058823529405,{"$f":"COUNTIF($M$24:$M$5023,\"<=\"&X12)-SUM(Y$2:Y11)","v":53}]
[null,8,0,{"$f":"IF(B13=GMAB_RN!$C$14,1,GMAB_RN!$C$18)","v":0.05},0,130457.83549612043,95749.845208380168,-2.792035321441444E-2,-2792.035321441444,1.4999999999999999E-2,1458.1194701783782,486.03982339279275,{"$f":"IF(B13=GMAB_RN!$C$14,MAX(GMAB_RN!$C$13-(G12+I13-K13),0),0)","v":0},null,{"$f":"GMAB_RN!$C$10","v":250},null,null,null,null,null,null,null,null,-2960.7843137254895,{"$f":"COUNTIF($M$24:$M$5023,\"<=\"&X13)-SUM(Y$2:Y12)","v":118}]
[null,9,0,{"$f":"IF(B14=GMAB_RN!$C$14,1,GMAB_RN!$C$18)","v":0.05},0,129562.76149858302,86309.440947387789,-8.4867471843591336E-2,-8126.0472922504323,1.4999999999999999E-2,1314.356968741946,438.11898958064876,{"$f":"IF(B14=GMAB_RN!$C$14,MAX(GMAB_RN!$C$13-(G13+I14-K14),0),0)","v":0},null,{"$f":"GMAB_RN!$C$10","v":250},null,null,null,null,null,null,null,null,-2156.8627450980384,{"$f":"COUNTIF($M$24:$M$5023,\"<=\"&X14)-SUM(Y$2:Y13)","v":135}]
[null,10,0,{"$f":"IF(B15=GMAB_RN!$C$14,1,GMAB_RN!$C$18)","v":0.05},0,145162.05117369874,145094.76530644187,0.70670008568518417,60994.889312959291,1.4999999999999999E-2,2209.564953905206,736.52165130173546,{"$f":"IF(B15=GMAB_RN!$C$14,MAX(GMAB_RN!$C$13-(G14+I15-K15),0),0)","v":0},null,{"$f":"GMAB_RN!$C$10","v":250},null,null,null,null,null,null,null,null,-1352.9411764705874,{"$f":"COUNTIF($M$24:$M$5023,\"<=\"&X15)-SUM(Y$2:Y14)","v":23}]
[null,null,null,null,null,null,null,null,null,null,null,null,null,null,null,null,null,null,null,null,null,null,null,-549.01960784313644,{"$f":"COUNTIF($M$24:$M$5023,\"<=\"&X16)-SUM(Y$2:Y15)","v":6}]
[null,null,null,null,null,null,null,null,null,null,null,null,null,null,null,null,null,null,null,null,null,null,null,254.9019607843145,{"$f":"COUNTIF($M$24:$M$5023,\"<=\"&X17)-SUM(Y$2:Y16)","v":6}]
["GMAB RN work",null,null,null,null,null,null,null,null,null,"CTEO ",{"$f":"AVERAGE(L23:L5023)","v":0.98968351499977347},{"$f":"AVERAGE(M23:M5023)","v":285.75541999999996},null,null,null,null,null,null,null,null,null,null,1058.8235294117653,{"$f":"COUNTIF($M$24:$M$5023,\"<=\"&X18)-SUM(Y$2:Y17)","v":5}]
[null,null,null,null,null,null,null,null,null,null,null,null,null,null,null,null,null,null,null,null,null,null,null,1862.7450980392164,{"$f":"COUNTIF($M$24:$M$5023,\"<=\"&X19)-SUM(Y$2:Y18)","v":7}]
[null,null,null,null,null,null,null,null,null,null,null,null,null,null,null,null,null,null,null,null,null,null,null,2666.6666666666674,{"$f":"COUNTIF($M$24:$M$5023,\"<=\"&X20)-SUM(Y$2:Y19)","v":3}]
[null,null,null,{"$f":"GMAB_RN!C51","v":"RW"},null,null,null,null,null,null,null,{"$f":"E35*G35","v":0.57905395828774375},{"$f":"I23","v":8318.8130653956723},null,null,null,null,null,null,null,null,null,null,3470.5882352941185,{"$f":"COUNTIF($M$24:$M$5023,\"<=\"&X21)-SUM(Y$2:Y20)","v":6}]
[null,null,{"$f":"NORMSINV(RAND())","v":-0.20845079036644071},{"$f":"IF(D21=\"RW\",GMAB_RN!C21,GMAB_RN!C22)+GMAB_RN!C105","v":0.08},{"$f":"GMAB_RN!$C$23+GMAB_RN!C106","v":0.2},null,null,null,null,null,"Output","PV(S&P)","Put value",null,null,null,null,null,null,null,null,null,null,4274.5098039215691,{"$f":"COUNTIF($M$24:$M$5023,\"<=\"&X22)-SUM(Y$2:Y21)","v":4}]
[null,"Project S&P",null,null,null,null,null,null,{"$f":"SUM(I26:I35)","v":8318.8130653956723},null,null,null,null,null,null,null,null,null,null,null,null,null,null,5078.4313725490201,{"$f":"COUNTIF($M$24:$M$5023,\"<=\"&X23)-SUM(Y$2:Y22)","v":5}]
[null,"Time (t)","rand_GMABRN","return","AV level","AV retun","Pvfact","GMAB payoff","PV GMAB",null,1,0.49925593912613964,2059.2800000000002,null,null,"Time (t)","AV (no decrement)","GMAB related cash flow",null,null,null,null,null,5882.3529411764712,{"$f":"COUNTIF($M$24:$M$5023,\"<=\"&X24)-SUM(Y$2:Y23)","v":11}]
[null,0,null,null,1,null,1,null,null,null,{"$f":"K24+1","v":2},1.3426381010287358,-4626.75,null,null,0,{"$f":"G5","v":100000},null,null,null,null,null,null,6686.2745098039222,{"$f":"COUNTIF($M$24:$M$5023,\"<=\"&X25)-SUM(Y$2:Y24)","v":6}]
[null,{"$f":"B25+1","v":1},-0.72130094028625868,{"$f":"D22","v":0.08},{"$f":"E25*EXP((D26-0.5*$E$22^2)*($B26-$B25)+$C26*$E$22*SQRT($B26-$B25))","v":0.91919206218187399},{"$f":"E26/E25-1","v":-8.0807937818126008E-2},{"$f":"G25*EXP(-D26*($B26-$B25))","v":0.92311634638663576},{"$f":"-C5*(L6-M6)","v":-459.59603109093706},{"$f":"H26*G26","v":-424.26060903446449},null,3,0.45419869880738711,13069.74,null,null,{"$f":"P25+1","v":1},{"$f":"(G6-M6)*(C5>0)","v":90540.418124914591},{"$f":"H26","v":-459.59603109093706},null,null,null,null,null,7490.1960784313733,{"$f":"COUNTIF($M$24:$M$5023,\"<=\"&X26)-SUM(Y$2:Y25)","v":6}]
[null,2,-1.2112500076646753,{"$f":"D26","v":0.08},{"$f":"E26*EXP((D27-0.5*$E$22^2)*($B27-$B26)+$C27*$E$22*SQRT($B27-$B26))","v":0.76604819796922474},{"$f":"E27/E26-1","v":-0.16660703514903474},0.85214378896621124,{"$f":"-C6*(L7-M7)","v":-358.41480062485101},-305.42094622602974,null,4,1.4758299567914495,-3661.82,null,null,2,74323.911287469105,-358.41480062485101,null,null,null,null,null,8294.1176470588234,{"$f":"COUNTIF($M$24:$M$5023,\"<=\"&X27)-SUM(Y$2:Y26)","v":6}]
[null,3,-1.5016458526615974,{"$f":"D27","v":0.08},0.60239653161605045,-0.21363103103304848,0.78662786106655325,-263.7376539178411,-207.46338658410221,null,5,1.8918262876772931,-4427.1400000000003,null,null,3,57569.327226387475,-263.7376539178411,null,null,null,null,null,9098.0392156862745,{"$f":"COUNTIF($M$24:$M$5023,\"<=\"&X28)-SUM(Y$2:Y27)","v":6}]
[null,4,-0.25674313318284592,0.08,0.60763069763971611,8.6889046482787613E-3,0.72614903707369072,-248.9368662379095,-180.76526571080012,null,6,0.35432431106485468,10023.799999999999,null,null,4,57198.498497003267,-248.9368662379095,null,null,null,null,null,9901.9607843137255,{"$f":"COUNTIF($M$24:$M$5023,\"<=\"&X29)-SUM(Y$2:Y28)","v":4}]
[null,5,0.38273121917549047,0.08,0.69653186061556727,0.14630788622296298,0.67032004603563911,-267.02402261874209,-178.99155513441673,null,7,1.039914485386088,-2979.15,null,null,5,64583.583558618739,-267.02402261874209,null,null,null,null,null,10705.882352941177,{"$f":"COUNTIF($M$24:$M$5023,\"<=\"&X30)-SUM(Y$2:Y29)","v":11}]
[null,6,-0.52498557694728487,0.08,0.66588462558004702,-4.3999760482507533E-2,0.61878339180614061,-238.87360892989841,-147.81102194661614,null,8,0.64459150772072316,-2452.73,null,null,6,60815.79253067344,-238.87360892989841,null,null,null,null,null,11509.803921568628,{"$f":"COUNTIF($M$24:$M$5023,\"<=\"&X31)-SUM(Y$2:Y30)","v":2}]
[null,7,0.91360717271063174,0.08,0.84881211068930085,0.27471348351061131,0.57120906384881465,17092.736211581323,9763.5258500321015,null,9,0.45614055611721305,7900.32,null,null,7,76359.870087994859,17092.736211581323,null,null,null,null,null,12313.725490196079,{"$f":"COUNTIF($M$24:$M$5023,\"<=\"&X32)-SUM(Y$2:Y31)","v":2}]
[null,8,-0.44158768370627954,0.08,0.82511297674618289,-2.792035321441444E-2,0.52729242404304832,0,0,null,10,1.4695471320103106,-3949.25,null,null,8,{"$f":"G13*(C12>0)","v":0},0,null,null,null,null,null,13117.64705882353,{"$f":"COUNTIF($M$24:$M$5023,\"<=\"&X33)-SUM(Y$2:Y32)","v":6}]
[null,9,-0.74343192339822428,0.08,0.75508772442439442,-8.4867471843591336E-2,0.4867522559599714,0,0,null,11,0.99770236529801781,-3669.31,null,null,9,{"$f":"G14*(C13>0)","v":0},0,null,null,null,null,null,13921.568627450981,{"$f":"COUNTIF($M$24:$M$5023,\"<=\"&X34)-SUM(Y$2:Y33)","v":7}]
[null,10,2.3728086582387751,0.08,1.2887082839749446,0.70670008568518417,0.44932896411722134,0,0,null,12,0.67186374348767919,-2033.38,null,null,10,{"$f":"G15*(C14>0)","v":0},0,null,null,null,null,null,14725.490196078432,{"$f":"COUNTIF($M$24:$M$5023,\"<=\"&X35)-SUM(Y$2:Y34)","v":5}]
[null,null,null,null,null,null,null,null,null,null,13,0.54127922267293771,10499.71,null,null,null,null,null,null,null,null,null,null,15529.411764705883,{"$f":"COUNTIF($M$24:$M$5023,\"<=\"&X36)-SUM(Y$2:Y35)","v":2}]
[null,null,null,null,null,null,null,null,null,null,14,1.2383997352151686,-3907.36,null,null,null,null,null,null,null,null,null,null,16333.333333333334,{"$f":"COUNTIF($M$24:$M$5023,\"<=\"&X37)-SUM(Y$2:Y36)","v":2}]
[null,null,null,null,null,null,null,null,null,null,15,1.3576674193612805,-2995.86,null,null,null,null,null,null,null,null,null,null,17137.254901960783,{"$f":"COUNTIF($M$24:$M$5023,\"<=\"&X38)-SUM(Y$2:Y37)","v":3}]
[null,null,null,null,null,null,null,null,null,null,16,0.49372919794377396,-2520.79,null,null,null,null,null,null,null,null,null,null,17941.176470588234,{"$f":"COUNTIF($M$24:$M$5023,\"<=\"&X39)-SUM(Y$2:Y38)","v":5}]
[null,null,null,null,null,null,null,null,null,null,17,0.99655174695486859,5880.5,null,null,null,null,null,null,null,null,null,null,18745.098039215685,{"$f":"COUNTIF($M$24:$M$5023,\"<=\"&X40)-SUM(Y$2:Y39)","v":4}]
[null,null,null,null,null,null,null,null,null,null,18,0.67263947716103467,-3766.13,null,null,null,null,null,null,null,null,null,null,19549.019607843136,{"$f":"COUNTIF($M$24:$M$5023,\"<=\"&X41)-SUM(Y$2:Y40)","v":3}]
[null,null,null,null,null,null,null,null,null,null,19,0.8144215281300019,-2604.9,null,null,null,null,null,null,null,null,null,null,20352.941176470587,{"$f":"COUNTIF($M$24:$M$5023,\"<=\"&X42)-SUM(Y$2:Y41)","v":0}]
[null,null,null,null,null,null,null,null,null,null,20,0.82306277877349887,-2794.65,null,null,null,null,null,null,null,null,null,null,21156.862745098038,{"$f":"COUNTIF($M$24:$M$5023,\"<=\"&X43)-SUM(Y$2:Y42)","v":0}]
[null,null,null,null,null,null,null,null,null,null,21,1.4184691616216309,-2982.02,null,null,null,null,null,null,null,null,null,null,21960.784313725489,{"$f":"COUNTIF($M$24:$M$5023,\"<=\"&X44)-SUM(Y$2:Y43)","v":3}]
[null,null,null,null,null,null,null,null,null,null,22,0.47256582248803447,-2523.21,null,null,null,null,null,null,null,null,null,null,22764.705882352941,{"$f":"COUNTIF($M$24:$M$5023,\"<=\"&X45)-SUM(Y$2:Y44)","v":1}]
[null,null,null,null,null,null,null,null,null,null,23,1.0322686095023081,-3818.79,null,null,null,null,null,null,null,null,null,null,23568.627450980392,{"$f":"COUNTIF($M$24:$M$5023,\"<=\"&X46)-SUM(Y$2:Y45)","v":0}]
[null,null,null,null,null,null,null,null,null,null,24,0.6493659110285479,7553.13,null,null,null,null,null,null,null,null,null,null,24372.549019607843,{"$f":"COUNTIF($M$24:$M$5023,\"<=\"&X47)-SUM(Y$2:Y46)","v":0}]
[null,null,null,null,null,null,null,null,null,null,25,0.492409801625249,1358.46,null,null,null,null,null,null,null,null,null,null,25176.470588235294,{"$f":"COUNTIF($M$24:$M$5023,\"<=\"&X48)-SUM(Y$2:Y47)","v":1}]
[null,null,null,null,null,null,null,null,null,null,26,1.361305245799695,-2802.55,null,null,null,null,null,null,null,null,null,null,25980.392156862745,{"$f":"COUNTIF($M$24:$M$5023,\"<=\"&X49)-SUM(Y$2:Y48)","v":3}]
[null,null,null,null,null,null,null,null,null,null,27,2.4859403974558898,-4266.7,null,null,null,null,null,null,null,null,null,null,26784.313725490196,{"$f":"COUNTIF($M$24:$M$5023,\"<=\"&X50)-SUM(Y$2:Y49)","v":0}]
[null,null,null,null,null,null,null,null,null,null,28,0.2696444559658967,17829.099999999999,null,null,null,null,null,null,null,null,null,null,27588.235294117647,{"$f":"COUNTIF($M$24:$M$5023,\"<=\"&X51)-SUM(Y$2:Y50)","v":0}]
[null,null,null,null,null,null,null,null,null,null,29,0.98429251883108093,-2862.5,null,null,null,null,null,null,null,null,null,null,28392.156862745098,{"$f":"COUNTIF($M$24:$M$5023,\"<=\"&X52)-SUM(Y$2:Y51)","v":0}]
[null,null,null,null,null,null,null,null,null,null,30,0.68101710945816407,-1702.51,null,null,null,null,null,null,null,null,null,null,29196.078431372549,{"$f":"COUNTIF($M$24:$M$5023,\"<=\"&X53)-SUM(Y$2:Y52)","v":1}]
[null,null,null,null,null,null,null,null,null,null,31,0.22914859965227433,18438.349999999999,null,null,null,null,null,null,null,null,null,null,30000,{"$f":"COUNTIF($M$24:$M$5023,\"<=\"&X54)-SUM(Y$2:Y53)","v":0}]
[null,null,null,null,null,null,null,null,null,null,32,2.9252635497350967,-4571.46]
[null,null,null,null,null,null,null,null,null,null,{"$f":"K55+1","v":33},1.2235022796375585,-2776.25]
[null,null,null,null,null,null,null,null,null,null,34,0.54786987910983631,-2650.55]
[null,null,null,null,null,null,null,null,null,null,35,0.65540032226089928,-93.93]
[null,null,null,null,null,null,null,null,null,null,36,1.0227642911789725,-3263.7]
[null,null,null,null,null,null,null,null,null,null,37,1.9427468769798784,-4000.46]
[null,null,null,null,null,null,null,null,null,null,38,0.34503725316892192,6936.01]
[null,null,null,null,null,null,null,null,null,null,39,1.0168034643235571,-2808.68]
[null,null,null,null,null,null,null,null,null,null,40,0.6592424884012158,-2619.36]
[null,null,null,null,null,null,null,null,null,null,41,0.69813499483684305,10540.3]
[null,null,null,null,null,null,null,null,null,null,42,0.96015820864601609,-3665.99]
[null,null,null,null,null,null,null,null,null,null,43,1.9532314196480915,-5305.76]
[null,null,null,null,null,null,null,null,null,null,44,0.34318516448829628,12342.37]
[null,null,null,null,null,null,null,null,null,null,45,0.52672189838904815,2.65]
[null,null,null,null,null,null,null,null,null,null,46,1.2726261203222762,-2640.68]
[null,null,null,null,null,null,null,null,null,null,47,0.4708574787663623,-2250.61]
[null,null,null,null,null,null,null,null,null,null,48,1.4236155870176772,-3269.03]
[null,null,null,null,null,null,null,null,null,null,49,1.4863915388739042,-4235.6000000000004]
[null,null,null,null,null,null,null,null,null,null,50,0.45097138170167173,10589.07]
[null,null,null,null,null,null,null,null,null,null,51,0.80470748540532233,-3495.31]
[null,null,null,null,null,null,null,null,null,null,52,0.83299839779420692,-1660.22]
[null,null,null,null,null,null,null,null,null,null,53,0.74710787697662273,-3284.82]
[null,null,null,null,null,null,null,null,null,null,54,0.8972198884427145,-2206.69]
[null,null,null,null,null,null,null,null,null,null,55,0.9265876353496606,-2609.92]
[null,null,null,null,null,null,null,null,null,null,56,0.72342865419597779,372.11]
[null,null,null,null,null,null,null,null,null,null,57,1.1259037263687792,-2407.0500000000002]
[null,null,null,null,null,null,null,null,null,null,58,0.59536177946362123,-3066.5]
[null,null,null,null,null,null,null,null,null,null,59,1.3547681532195683,-3716.09]
[null,null,null,null,null,null,null,null,null,null,60,0.4947858011296189,4985.32]
[null,null,null,null,null,null,null,null,null,null,61,1.9934554998487317,-3412.91]
[null,null,null,null,null,null,null,null,null,null,62,0.33626035097673579,-1647.26]
[null,null,null,null,null,null,null,null,null,null,63,0.45543651241837746,-2182.38]
[null,null,null,null,null,null,null,null,null,null,64,1.4718188545670725,-3347.9]
[null,null,null,null,null,null,null,null,null,null,{"$f":"K87+1","v":65},0.8475829727308859,-2550.71]
[null,null,null,null,null,null,null,null,null,null,66,0.79086067984104036,-2879.23]
[null,null,null,null,null,null,null,null,null,null,67,0.37038432611687122,4336.6000000000004]
[null,null,null,null,null,null,null,null,null,null,68,1.8097959302525286,-3536.96]
[null,null,null,null,null,null,null,null,null,null,69,1.0174590865807531,-3201.05]
[null,null,null,null,null,null,null,null,null,null,70,0.65881769092878106,-2281.52]
[null,null,null,null,null,null,null,null,null,null,71,0.39451275246199852,-2246.8200000000002]
[null,null,null,null,null,null,null,null,null,null,72,1.6991086900295,-2802.86]
[null,null,null,null,null,null,null,null,null,null,73,0.53166786316208214,3935.14]
[null,null,null,null,null,null,null,null,null,null,74,1.2607872178862309,-3664.4]
[null,null,null,null,null,null,null,null,null,null,75,1.0647848836736447,-3320.22]
[null,null,null,null,null,null,null,null,null,null,76,0.62953565204921769,2972.46]
[null,null,null,null,null,null,null,null,null,null,77,0.57040051946720471,-2858.38]
[null,null,null,null,null,null,null,null,null,null,78,1.1751743260363188,-2619.0100000000002]
[null,null,null,null,null,null,null,null,null,null,79,0.68861446988765662,8363.01]
[null,null,null,null,null,null,null,null,null,null,80,0.97343299530867755,-2958.94]
[null,null,null,null,null,null,null,null,null,null,81,0.66078029398495675,1766.03]
[null,null,null,null,null,null,null,null,null,null,82,1.0144371013141908,-4225.7]
[null,null,null,null,null,null,null,null,null,null,83,1.5251275118341581,-4455.7]
[null,null,null,null,null,null,null,null,null,null,84,0.4395173786023272,-1674.17]
[null,null,null,null,null,null,null,null,null,null,85,2.1033825593870041,-4150.76]
[null,null,null,null,null,null,null,null,null,null,86,0.31868669968956687,17559.400000000001]
[null,null,null,null,null,null,null,null,null,null,87,0.52305631254933838,-2404.7600000000002]
[null,null,null,null,null,null,null,null,null,null,88,1.2815447016948285,-3044.36]
[null,null,null,null,null,null,null,null,null,null,89,0.93954301460979595,-2542]
[null,null,null,null,null,null,null,null,null,null,90,0.71345328059730295,-2892.13]
[null,null,null,null,null,null,null,null,null,null,91,0.60263834777362679,6590.42]
[null,null,null,null,null,null,null,null,null,null,92,1.1123089801902808,-4099.7]
[null,null,null,null,null,null,null,null,null,null,93,0.64049222226722136,-2723.49]
[null,null,null,null,null,null,null,null,null,null,94,1.0465701576559852,-2718.68]
[null,null,null,null,null,null,null,null,null,null,95,1.8065272973947779,-2564]
[null,null,null,null,null,null,null,null,null,null,96,0.3710544794990463,-2871.52]
[null,null,null,null,null,null,null,null,null,null,{"$f":"K119+1","v":97},1.4847402435796109,-4752.29]
[null,null,null,null,null,null,null,null,null,null,98,0.45147294210840594,15325.78]
[null,null,null,null,null,null,null,null,null,null,99,1.1323658163474586,-463.2]
[null,null,null,null,null,null,null,null,null,null,100,0.59196421894632301,-3684.61]
[null,null,null,null,null,null,null,null,null,null,101,0.93913970034013206,-2481.7199999999998]
[null,null,null,null,null,null,null,null,null,null,102,0.71375967365969761,-2913.45]
[null,null,null,null,null,null,null,null,null,null,103,0.89662550227073179,-3340.47]
[null,null,null,null,null,null,null,null,null,null,104,0.74760314572587139,-2242.5]
[null,null,null,null,null,null,null,null,null,null,105,0.98821960356944216,-2697.35]
[null,null,null,null,null,null,null,null,null,null,106,0.67831081635544055,-2740.05]
[null,null,null,null,null,null,null,null,null,null,107,0.90076247755397121,-2618.46]
[null,null,null,null,null,null,null,null,null,null,108,0.7441695926942905,-2793.5]
[null,null,null,null,null,null,null,null,null,null,109,0.51486040107555442,-2978.42]
[null,null,null,null,null,null,null,null,null,null,110,1.3019452353207299,-2498.5100000000002]
[null,null,null,null,null,null,null,null,null,null,111,0.30907161613797485,16954.900000000001]
[null,null,null,null,null,null,null,null,null,null,112,2.1688178759721373,-3974.7]
[null,null,null,null,null,null,null,null,null,null,113,0.46765587634496714,-2418.2600000000002]
[null,null,null,null,null,null,null,null,null,null,114,1.4333617515396633,-3022.43]
[null,null,null,null,null,null,null,null,null,null,115,0.47412292418768875,10452.06]
[null,null,null,null,null,null,null,null,null,null,116,1.4138106635195784,-4173.92]
[null,null,null,null,null,null,null,null,null,null,117,0.77895752549992847,-3069.53]
[null,null,null,null,null,null,null,null,null,null,118,0.86053478410832829,-2404.69]
[null,null,null,null,null,null,null,null,null,null,119,0.51866436865804988,9065.2800000000007]
[null,null,null,null,null,null,null,null,null,null,120,1.2923965603613179,-3430.71]
[null,null,null,null,null,null,null,null,null,null,121,0.42998111152697094,9401.5400000000009]
[null,null,null,null,null,null,null,null,null,null,122,1.5589523075912892,-3584.02]
[null,null,null,null,null,null,null,null,null,null,123,1.3462191559779482,-4861.16]
[null,null,null,null,null,null,null,null,null,null,124,0.49792787679409534,11448.37]
[null,null,null,null,null,null,null,null,null,null,125,1.4990934529144768,-3159.14]
[null,null,null,null,null,null,null,null,null,null,126,0.44715027254133444,3537.67]
[null,null,null,null,null,null,null,null,null,null,127,0.74299124446325537,-3207.04]
[null,null,null,null,null,null,null,null,null,null,128,0.90219104334114297,-2306.4299999999998]
[null,null,null,null,null,null,null,null,null,null,{"$f":"K151+1","v":129},2.2352105841109999,-3604.87]
[null,null,null,null,null,null,null,null,null,null,130,0.29989122760987724,5093.1899999999996]
[null,null,null,null,null,null,null,null,null,null,131,0.58058146650103526,-2989.38]
[null,null,null,null,null,null,null,null,null,null,132,1.1545667313071957,-2544.37]
[null,null,null,null,null,null,null,null,null,null,133,2.0624055750502954,-3220.77]
[null,null,null,null,null,null,null,null,null,null,134,0.32501853861566093,13443.44]
[null,null,null,null,null,null,null,null,null,null,135,0.35359141349231116,14155.6]
[null,null,null,null,null,null,null,null,null,null,136,1.895747522302927,-3541.35]
[null,null,null,null,null,null,null,null,null,null,137,0.22748595513921596,9592.59]
[null,null,null,null,null,null,null,null,null,null,138,2.9466436537825769,-3847.95]
[null,null,null,null,null,null,null,null,null,null,139,0.6333518343794835,-2463.2399999999998]
[null,null,null,null,null,null,null,null,null,null,140,1.0583691554195531,-2959.87]
[null,null,null,null,null,null,null,null,null,null,141,0.98249544046175352,-3628.51]
[null,null,null,null,null,null,null,null,null,null,142,0.68226275505217771,5737.65]
[null,null,null,null,null,null,null,null,null,null,143,0.41662928549448131,-3031.09]
[null,null,null,null,null,null,null,null,null,null,144,1.6089124537658497,-2480.4499999999998]
[null,null,null,null,null,null,null,null,null,null,145,0.52094051240738826,-2218.13]
[null,null,null,null,null,null,null,null,null,null,146,1.2867496961177634,-3390.55]
[null,null,null,null,null,null,null,null,null,null,147,1.0510223754723573,-3802.1]
[null,null,null,null,null,null,null,null,null,null,148,0.63777904417532372,13660.35]
[null,null,null,null,null,null,null,null,null,null,149,0.3510962889621661,2728.29]
[null,null,null,null,null,null,null,null,null,null,150,1.9092199693055487,-3538.54]
[null,null,null,null,null,null,null,null,null,null,151,0.5209088000473886,-2413.31]
[null,null,null,null,null,null,null,null,null,null,152,1.2868280320368122,-3055.49]
[null,null,null,null,null,null,null,null,null,null,153,0.71380927386820325,-2527.7800000000002]
[null,null,null,null,null,null,null,null,null,null,154,0.93907444267725404,-2932.51]
[null,null,null,null,null,null,null,null,null,null,155,1.7614207521805365,-4026.19]
[null,null,null,null,null,null,null,null,null,null,156,0.38055646000867266,13283.53]
[null,null,null,null,null,null,null,null,null,null,157,1.5588536470520342,-3058.26]
[null,null,null,null,null,null,null,null,null,null,158,0.43000832522237636,-122.57]
[null,null,null,null,null,null,null,null,null,null,159,0.62324990532925828,-2247.29]
[null,null,null,null,null,null,null,null,null,null,160,1.0755237029382516,-3244.21]
[null,null,null,null,null,null,null,null,null,null,{"$f":"K183+1","v":161},1.5602204854290267,-3564.75]
[null,null,null,null,null,null,null,null,null,null,162,0.42963161443897779,5812.05]
[null,null,null,null,null,null,null,null,null,null,163,1.0859963171784082,-2547.02]
[null,null,null,null,null,null,null,null,null,null,164,0.6172397046218695,1384.78]
[null,null,null,null,null,null,null,null,null,null,165,0.79176014164037611,-2429.08]
[null,null,null,null,null,null,null,null,null,null,166,0.8466200946246969,-3028.18]
[null,null,null,null,null,null,null,null,null,null,167,1.1376953359131512,-2850.18]
[null,null,null,null,null,null,null,null,null,null,168,0.58919116996961041,-2554.62]
[null,null,null,null,null,null,null,null,null,null,169,2.1602918863327067,-6528.85]
[null,null,null,null,null,null,null,null,null,null,170,0.31029142417118838,25917.439999999999]
[null,null,null,null,null,null,null,null,null,null,171,0.8900710223753644,-4552.57]
[null,null,null,null,null,null,null,null,null,null,172,0.7531084926759346,16953.95]
[null,null,null,null,null,null,null,null,null,null,173,1.5791031614581272,-4987.9799999999996]
[null,null,null,null,null,null,null,null,null,null,174,0.4244941447756157,17795.34]
[null,null,null,null,null,null,null,null,null,null,175,1.3374336943448002,-3870.9]
[null,null,null,null,null,null,null,null,null,null,176,0.50119871278106509,3109.29]
[null,null,null,null,null,null,null,null,null,null,177,0.70058317203843967,-2978.47]
[null,null,null,null,null,null,null,null,null,null,178,0.95680295044092079,-2497.6799999999998]
[null,null,null,null,null,null,null,null,null,null,179,0.90228787435347624,-3795.21]
[null,null,null,null,null,null,null,null,null,null,180,0.74291150871992917,888.89]
[null,null,null,null,null,null,null,null,null,null,181,0.60995669445597822,263.04000000000002]
[null,null,null,null,null,null,null,null,null,null,182,1.0989633397392229,-3868.25]
[null,null,null,null,null,null,null,null,null,null,183,1.0385819562934497,-4341.5200000000004]
[null,null,null,null,null,null,null,null,null,null,184,0.64541853627797918,4811.08]
[null,null,null,null,null,null,null,null,null,null,185,1.0920931909128748,-2481.56]
[null,null,null,null,null,null,null,null,null,null,186,0.61379381504551056,-2984.2]
[null,null,null,null,null,null,null,null,null,null,187,0.40384126600133885,8465.27]
[null,null,null,null,null,null,null,null,null,null,188,1.6598602036707564,-4476.57]
[null,null,null,null,null,null,null,null,null,null,189,1.1254609433036844,-3396.4]
[null,null,null,null,null,null,null,null,null,null,190,0.59559600892766407,1977.63]
[null,null,null,null,null,null,null,null,null,null,191,0.74247353462422472,-2482.33]
[null,null,null,null,null,null,null,null,null,null,192,0.90282012055136263,-2925.99]
[null,null,null,null,null,null,null,null,null,null,193,0.47397824369813907,13495.66]
[null,null,null,null,null,null,null,null,null,null,194,1.4142422251400699,-3544.32]
[null,null,null,null,null,null,null,null,null,null,195,0.94858773914646943,-2618.6]
[null,null,null,null,null,null,null,null,null,null,196,0.70665054836022523,5350.63]
[null,null,null,null,null,null,null,null,null,null,197,0.53905692366549007,-1992.01]
[null,null,null,null,null,null,null,null,null,null,198,1.2435051227569494,-3694.14]
[null,null,null,null,null,null,null,null,null,null,199,1.4111730827878066,-2911.43]
[null,null,null,null,null,null,null,null,null,null,200,0.47500909293947496,4070.14]
[null,null,null,null,null,null,null,null,null,null,201,0.60276651506135814,-3544.05]
[null,null,null,null,null,null,null,null,null,null,202,1.1120724680059639,-2100.29]
[null,null,null,null,null,null,null,null,null,null,203,1.8063448952333998,-3728.07]
[null,null,null,null,null,null,null,null,null,null,204,0.37109194805736456,8629.42]
[null,null,null,null,null,null,null,null,null,null,205,0.6090552472102696,13462.52]
[null,null,null,null,null,null,null,null,null,null,206,1.1005898875446647,-4135.9799999999996]
[null,null,null,null,null,null,null,null,null,null,207,0.78189167213576805,-3733.05]
[null,null,null,null,null,null,null,null,null,null,208,0.85730551932422117,6335.38]
[null,null,null,null,null,null,null,null,null,null,209,0.64091015810759056,-4537.8599999999997]
[null,null,null,null,null,null,null,null,null,null,210,1.0458876919892897,7558.91]
[null,null,null,null,null,null,null,null,null,null,211,1.0130091934112928,-2881.01]
[null,null,null,null,null,null,null,null,null,null,212,0.66171171041236687,-2568.44]
[null,null,null,null,null,null,null,null,null,null,213,0.48634137347666984,-92.97]
[null,null,null,null,null,null,null,null,null,null,214,1.3782912221589854,-3179.31]
[null,null,null,null,null,null,null,null,null,null,215,1.3137895620343008,-3054.92]
[null,null,null,null,null,null,null,null,null,null,216,0.51021873320237088,-898.01]
[null,null,null,null,null,null,null,null,null,null,217,0.38635337621424848,18938.27]
[null,null,null,null,null,null,null,null,null,null,218,1.7349920753996961,-4577.72]
[null,null,null,null,null,null,null,null,null,null,219,0.71488825700257397,-3773.03]
[null,null,null,null,null,null,null,null,null,null,220,0.93765709461531299,-1983.32]
[null,null,null,null,null,null,null,null,null,null,221,0.40511227089203233,8283.1200000000008]
[null,null,null,null,null,null,null,null,null,null,222,1.6546525351099213,-3936.56]
[null,null,null,null,null,null,null,null,null,null,223,1.432600330025918,-3249.01]
[null,null,null,null,null,null,null,null,null,null,224,0.46790443362770345,-2260.5]
[null,null,null,null,null,null,null,null,null,null,{"$f":"K247+1","v":225},0.5465459906968273,4916.6099999999997]
[null,null,null,null,null,null,null,null,null,null,226,1.2264659469571872,-3531.05]
[null,null,null,null,null,null,null,null,null,null,227,0.55369264348514724,-2449.7600000000002]
[null,null,null,null,null,null,null,null,null,null,228,1.2106356367973305,-3011.32]
[null,null,null,null,null,null,null,null,null,null,229,2.4753895960958716,-3934.14]
[null,null,null,null,null,null,null,null,null,null,230,0.27079375589719379,11758.24]
[null,null,null,null,null,null,null,null,null,null,231,0.3615232584096027,17296.48]
[null,null,null,null,null,null,null,null,null,null,232,1.8541546925209782,-5098.8100000000004]
[null,null,null,null,null,null,null,null,null,null,233,1.0294498160191925,-2725.15]
[null,null,null,null,null,null,null,null,null,null,234,0.65114397574785821,-2755.59]
[null,null,null,null,null,null,null,null,null,null,235,0.67978089305727551,6997.96]
[null,null,null,null,null,null,null,null,null,null,236,0.98608250523328556,-3653.44]
[null,null,null,null,null,null,null,null,null,null,237,0.27810540051276444,1794.04]
[null,null,null,null,null,null,null,null,null,null,238,2.410309346023908,-3762.44]
[null,null,null,null,null,null,null,null,null,null,239,0.28280561013972166,25645.599999999999]
[null,null,null,null,null,null,null,null,null,null,240,2.3702501718564299,-6677.69]
[null,null,null,null,null,null,null,null,null,null,241,0.5883997644660458,-3279.26]
[null,null,null,null,null,null,null,null,null,null,242,1.1392255512609408,-2365.3200000000002]
[null,null,null,null,null,null,null,null,null,null,243,0.35409011389297135,9354.7000000000007]
[null,null,null,null,null,null,null,null,null,null,244,1.8930775521122067,-3549.53]
[null,null,null,null,null,null,null,null,null,null,245,0.39551469107032533,-2612.12]
[null,null,null,null,null,null,null,null,null,null,246,1.6948044185707658,-2783.02]
[null,null,null,null,null,null,null,null,null,null,247,0.51811644015020453,9924.7099999999991]
[null,null,null,null,null,null,null,null,null,null,248,1.2937633205410524,-2853.22]
[null,null,null,null,null,null,null,null,null,null,249,0.87047301733560534,-2071.08]
[null,null,null,null,null,null,null,null,null,null,250,0.77006412914141009,-3564.87]
[null,null,null,null,null,null,null,null,null,null,251,0.4190096972858251,-1325.49]
[null,null,null,null,null,null,null,null,null,null,252,1.5997721541475058,-3346.14]
[null,null,null,null,null,null,null,null,null,null,253,2.4253290837227661,-3832.07]
[null,null,null,null,null,null,null,null,null,null,254,0.27638313107049739,8354.19]
[null,null,null,null,null,null,null,null,null,null,255,1.0880877113713887,-3059.94]
[null,null,null,null,null,null,null,null,null,null,256,0.61605331907552763,-2435.1999999999998]
[null,null,null,null,null,null,null,null,null,null,257,0.45348958084604063,-2999.82]
[null,null,null,null,null,null,null,null,null,null,258,1.478137700065951,-2448.5300000000002]
[null,null,null,null,null,null,null,null,null,null,259,3.2562071009522295,-9643.3799999999992]
[null,null,null,null,null,null,null,null,null,null,260,0.20585915614507846,28959.98]
[null,null,null,null,null,null,null,null,null,null,261,1.0566830597578036,-2521.92]
[null,null,null,null,null,null,null,null,null,null,262,0.63436244183689194,-3029.06]
[null,null,null,null,null,null,null,null,null,null,263,0.34245642523745407,8852.3700000000008]
[null,null,null,null,null,null,null,null,null,null,264,1.9573878503545339,-3407.82]
[null,null,null,null,null,null,null,null,null,null,265,0.33841011769998947,15053.44]
[null,null,null,null,null,null,null,null,null,null,266,1.9807919768814268,-4161.5600000000004]
[null,null,null,null,null,null,null,null,null,null,267,0.52593002711798409,12659.12]
[null,null,null,null,null,null,null,null,null,null,268,1.2745422612754964,-3688.9]
[null,null,null,null,null,null,null,null,null,null,269,0.25645516670372376,5492.62]
[null,null,null,null,null,null,null,null,null,null,270,2.6137903737772712,-3189.4]
[null,null,null,null,null,null,null,null,null,null,271,1.0909626878240266,-2832.36]
[null,null,null,null,null,null,null,null,null,null,272,0.61442985495005453,-2584.48]
[null,null,null,null,null,null,null,null,null,null,273,1.9071565061500999,-2517.7600000000002]
[null,null,null,null,null,null,null,null,null,null,274,0.35147616038538254,1666.15]
[null,null,null,null,null,null,null,null,null,null,275,1.2986370051267164,-4800.67]
[null,null,null,null,null,null,null,null,null,null,276,0.51617198908499506,7290.23]
[null,null,null,null,null,null,null,null,null,null,277,0.56478491779214046,-2407.7800000000002]
[null,null,null,null,null,null,null,null,null,null,278,1.1868589704131201,-3079.48]
[null,null,null,null,null,null,null,null,null,null,279,0.66195029847381237,-2310.4899999999998]
[null,null,null,null,null,null,null,null,null,null,280,1.0126440724947525,-3169.24]
[null,null,null,null,null,null,null,null,null,null,281,0.19741177915958474,7624.38]
[null,null,null,null,null,null,null,null,null,null,282,3.3955422968644746,-3372.75]
[null,null,null,null,null,null,null,null,null,null,283,1.4427907265989905,-3072.9]
[null,null,null,null,null,null,null,null,null,null,284,0.46459963574602803,5686.21]
[null,null,null,null,null,null,null,null,null,null,285,0.81100672123323791,-2185.62]
[null,null,null,null,null,null,null,null,null,null,286,0.82652834863850755,-3372.03]
[null,null,null,null,null,null,null,null,null,null,287,0.55322521290339077,6841.63]
[null,null,null,null,null,null,null,null,null,null,288,1.2116585260417188,-2731.16]
[null,null,null,null,null,null,null,null,null,null,{"$f":"K311+1","v":289},0.41979466854096814,-3086.01]
[null,null,null,null,null,null,null,null,null,null,290,1.5967807508499159,-2408.98]
[null,null,null,null,null,null,null,null,null,null,291,1.4656837161519125,-2981.57]
[null,null,null,null,null,null,null,null,null,null,292,0.4573429032803436,-2462.6999999999998]
[null,null,null,null,null,null,null,null,null,null,293,0.41921654555837073,21920.959999999999]
[null,null,null,null,null,null,null,null,null,null,294,1.5989828005066298,-5440.1]
[null,null,null,null,null,null,null,null,null,null,295,2.5388319011820535,-3855.31]
[null,null,null,null,null,null,null,null,null,null,296,0.26402695102560542,10450.030000000001]
[null,null,null,null,null,null,null,null,null,null,297,4.1786354908070047,-4646.09]
[null,null,null,null,null,null,null,null,null,null,298,0.16041601319625554,21759.15]
[null,null,null,null,null,null,null,null,null,null,299,0.41233628864992877,18483.78]
[null,null,null,null,null,null,null,null,null,null,300,1.6256634802393939,-3688.08]
[null,null,null,null,null,null,null,null,null,null,301,0.72362793227922861,-2232.89]
[null,null,null,null,null,null,null,null,null,null,302,0.92633246470228892,-3260.29]
[null,null,null,null,null,null,null,null,null,null,303,0.9175078014834035,-3204.83]
[null,null,null,null,null,null,null,null,null,null,304,0.73058784345144745,-2302.56]
[null,null,null,null,null,null,null,null,null,null,305,0.45234753478786655,-915.74]
[null,null,null,null,null,null,null,null,null,null,306,1.4818695681628786,-3197.14]
[null,null,null,null,null,null,null,null,null,null,307,0.75036904745945299,-1017.51]
[null,null,null,null,null,null,null,null,null,null,308,0.89332049117052681,-3511.39]
[null,null,null,null,null,null,null,null,null,null,309,0.26075553582995858,14644.41]
[null,null,null,null,null,null,null,null,null,null,310,2.570683854906771,-4446.4799999999996]
[null,null,null,null,null,null,null,null,null,null,311,0.64068652927679903,-2423.19]
[null,null,null,null,null,null,null,null,null,null,312,1.0462527545136462,-3003.91]
[null,null,null,null,null,null,null,null,null,null,313,0.29761779079266648,22720.38]
[null,null,null,null,null,null,null,null,null,null,314,2.2522848659360313,-6590.67]
[null,null,null,null,null,null,null,null,null,null,315,0.31950637206884241,5390.51]
[null,null,null,null,null,null,null,null,null,null,316,2.0979864711155369,-4683.92]
[null,null,null,null,null,null,null,null,null,null,317,1.2489893576056861,-4304.08]
[null,null,null,null,null,null,null,null,null,null,318,0.53668995812794007,336.86]
[null,null,null,null,null,null,null,null,null,null,319,1.3141526964349701,-3701.39]
[null,null,null,null,null,null,null,null,null,null,320,0.5100777465617814,-1983.52]
[null,null,null,null,null,null,null,null,null,null,321,0.66374402089264539,-2234.62]
[null,null,null,null,null,null,null,null,null,null,322,1.0099074717601966,-3336.35]
[null,null,null,null,null,null,null,null,null,null,323,0.34879618349542341,-2529.35]
[null,null,null,null,null,null,null,null,null,null,324,1.9218101508970031,-2908.48]
[null,null,null,null,null,null,null,null,null,null,325,0.6510412021215769,-2617.36]
[null,null,null,null,null,null,null,null,null,null,326,1.0296123253816145,-2822.27]
[null,null,null,null,null,null,null,null,null,null,327,0.81621386503577686,-2605.2199999999998]
[null,null,null,null,null,null,null,null,null,null,328,0.82125540222997406,-2927.85]
[null,null,null,null,null,null,null,null,null,null,329,0.75703203782228057,6526.24]
[null,null,null,null,null,null,null,null,null,null,330,0.88545796286761902,-3653.15]
[null,null,null,null,null,null,null,null,null,null,331,0.97805272211003536,-2509.25]
[null,null,null,null,null,null,null,null,null,null,332,0.68536187352917,-2958.53]
[null,null,null,null,null,null,null,null,null,null,333,0.38365344348428704,12153.26]
[null,null,null,null,null,null,null,null,null,null,334,1.7472019537942509,-4037.75]
[null,null,null,null,null,null,null,null,null,null,335,0.2766776264058155,2749.01]
[null,null,null,null,null,null,null,null,null,null,336,2.4227475663407994,-3651.4]
[null,null,null,null,null,null,null,null,null,null,337,0.79058450179078865,-3009.49]
[null,null,null,null,null,null,null,null,null,null,338,0.84787906228526677,-2449.17]
[null,null,null,null,null,null,null,null,null,null,339,0.66067637251118039,-2656.52]
[null,null,null,null,null,null,null,null,null,null,340,1.0145966677872906,-2929.75]
[null,null,null,null,null,null,null,null,null,null,341,0.66513883356084158,201.32]
[null,null,null,null,null,null,null,null,null,null,342,1.0077896706873353,-3021.35]
[null,null,null,null,null,null,null,null,null,null,343,1.9003789388510497,-5445.33]
[null,null,null,null,null,null,null,null,null,null,344,0.35272967529355337,14591.55]
[null,null,null,null,null,null,null,null,null,null,345,2.1042015837479489,-3395.63]
[null,null,null,null,null,null,null,null,null,null,346,0.31856265635998698,10279.950000000001]
[null,null,null,null,null,null,null,null,null,null,347,1.8576387008440109,-3458]
[null,null,null,null,null,null,null,null,null,null,348,0.36084522018790899,10208.99]
[null,null,null,null,null,null,null,null,null,null,349,3.0063972687502027,-4683.3599999999997]
[null,null,null,null,null,null,null,null,null,null,350,0.22296456060655581,18280.55]
[null,null,null,null,null,null,null,null,null,null,351,0.68392712262404665,-3475.32]
[null,null,null,null,null,null,null,null,null,null,352,0.98010449339075612,-2117.21]
[null,null,null,null,null,null,null,null,null,null,{"$f":"K375+1","v":353},0.87969962395406442,-3315.26]
[null,null,null,null,null,null,null,null,null,null,354,0.76198741909504464,-2277.56]
[null,null,null,null,null,null,null,null,null,null,355,0.59177094283374432,-2848.88]
[null,null,null,null,null,null,null,null,null,null,356,1.1327356541464426,-2431.58]
[null,null,null,null,null,null,null,null,null,null,357,1.2216224436475811,-2931.37]
[null,null,null,null,null,null,null,null,null,null,358,0.54871294279283511,7284.17]
[null,null,null,null,null,null,null,null,null,null,359,1.1789685422738945,-3643.94]
[null,null,null,null,null,null,null,null,null,null,360,0.56856482764398641,5874.75]
[null,null,null,null,null,null,null,null,null,null,361,0.43446570900877857,8049.82]
[null,null,null,null,null,null,null,null,null,null,362,1.5428606496124979,-4158.42]
[null,null,null,null,null,null,null,null,null,null,363,3.0351925607239685,-3355.09]
[null,null,null,null,null,null,null,null,null,null,364,0.2208492649559442,3890.45]
[null,null,null,null,null,null,null,null,null,null,365,0.25358013633869447,18021.78]
[null,null,null,null,null,null,null,null,null,null,366,2.6434248979988126,-5358.06]
[null,null,null,null,null,null,null,null,null,null,367,0.38165111907627963,12720.77]
[null,null,null,null,null,null,null,null,null,null,368,1.7563686113590646,-4073.51]
[null,null,null,null,null,null,null,null,null,null,369,0.72968889362476241,6656.45]
[null,null,null,null,null,null,null,null,null,null,370,0.91863813728312782,-3548.4]
[null,null,null,null,null,null,null,null,null,null,371,0.55325824036202675,-2331.83]
[null,null,null,null,null,null,null,null,null,null,372,1.2115861945355062,-3224.32]
[null,null,null,null,null,null,null,null,null,null,373,2.7330096708311484,-7505.74]
[null,null,null,null,null,null,null,null,null,null,374,0.24526808418931942,25157.279999999999]
[null,null,null,null,null,null,null,null,null,null,375,0.91636661477613945,-2090.2800000000002]
[null,null,null,null,null,null,null,null,null,null,376,0.73149767268572052,-3589.55]
[null,null,null,null,null,null,null,null,null,null,377,2.5392185612205722,-4770.71]
[null,null,null,null,null,null,null,null,null,null,378,0.26398674626630941,21448.79]
[null,null,null,null,null,null,null,null,null,null,379,0.38784162720158422,3421.82]
[null,null,null,null,null,null,null,null,null,null,380,1.7283344515446599,-4489.28]
[null,null,null,null,null,null,null,null,null,null,381,0.64028544020827571,7162.47]
[null,null,null,null,null,null,null,null,null,null,382,1.0469081505548417,-3694.97]
[null,null,null,null,null,null,null,null,null,null,383,0.60455464694702021,-2836.57]
[null,null,null,null,null,null,null,null,null,null,384,1.108783216572284,-2610.75]
[null,null,null,null,null,null,null,null,null,null,385,0.56606938840368259,484.62]
[null,null,null,null,null,null,null,null,null,null,386,1.1841658633510339,-4003.98]
[null,null,null,null,null,null,null,null,null,null,387,1.5730034267940889,-3200.38]
[null,null,null,null,null,null,null,null,null,null,388,0.42614023251163935,-2284.65]
[null,null,null,null,null,null,null,null,null,null,389,1.318311524949078,-6042.92]
[null,null,null,null,null,null,null,null,null,null,390,0.50846862319703301,15885.84]
[null,null,null,null,null,null,null,null,null,null,391,1.5927481026880483,-4752.79]
[null,null,null,null,null,null,null,null,null,null,392,0.42085753855512559,19238]
[null,null,null,null,null,null,null,null,null,null,393,0.5234444286349853,-2451.12]
[null,null,null,null,null,null,null,null,null,null,394,1.280594480265401,-3019.13]
[null,null,null,null,null,null,null,null,null,null,395,0.53576748127584106,-3393.26]
[null,null,null,null,null,null,null,null,null,null,396,1.2511398497709916,-2146.8200000000002]
[null,null,null,null,null,null,null,null,null,null,397,0.88387346255838806,-3144.51]
[null,null,null,null,null,null,null,null,null,null,398,0.75838915232886928,-2398.9299999999998]
[null,null,null,null,null,null,null,null,null,null,399,1.0524938136947619,-2333.7800000000002]
[null,null,null,null,null,null,null,null,null,null,400,0.63688739763941338,-3181.84]
[null,null,null,null,null,null,null,null,null,null,401,0.64385771056060881,-1429.69]
[null,null,null,null,null,null,null,null,null,null,402,1.0410996638558367,-2725.09]
[null,null,null,null,null,null,null,null,null,null,403,2.0644258983414447,-5323.7]
[null,null,null,null,null,null,null,null,null,null,404,0.3247004634916526,12915.82]
[null,null,null,null,null,null,null,null,null,null,405,0.55661393613407351,-2082.83]
[null,null,null,null,null,null,null,null,null,null,406,1.2042818235765052,-3514.84]
[null,null,null,null,null,null,null,null,null,null,407,0.90913719650957547,-2400.13]
[null,null,null,null,null,null,null,null,null,null,408,0.73731450941527799,-3337.5]
[null,null,null,null,null,null,null,null,null,null,409,2.8899277744367522,-3940.42]
[null,null,null,null,null,null,null,null,null,null,410,0.23195044940743695,17262.22]
[null,null,null,null,null,null,null,null,null,null,411,1.3751503334919977,-4011.08]
[null,null,null,null,null,null,null,null,null,null,412,0.48745219319654781,5793.97]
[null,null,null,null,null,null,null,null,null,null,413,0.40689909264899377,15872.17]
[null,null,null,null,null,null,null,null,null,null,414,1.6473864359630841,-4101.1099999999997]
[null,null,null,null,null,null,null,null,null,null,415,0.80042409826149719,-3466.55]
[null,null,null,null,null,null,null,null,null,null,416,0.83745610294787265,-2109.21]
[null,null,null,null,null,null,null,null,null,null,{"$f":"K439+1","v":417},1.7017367902644345,-2945.57]
[null,null,null,null,null,null,null,null,null,null,418,0.39390348135534936,4833.09]
[null,null,null,null,null,null,null,null,null,null,419,0.61548040252254765,-1925.74]
[null,null,null,null,null,null,null,null,null,null,420,1.0891005518426424,-3827.51]
[null,null,null,null,null,null,null,null,null,null,421,0.40231672111418032,-2731.25]
[null,null,null,null,null,null,null,null,null,null,422,1.6661501022856984,-2743.19]
[null,null,null,null,null,null,null,null,null,null,423,0.22339702143179874,14551.76]
[null,null,null,null,null,null,null,null,null,null,424,3.0005773655325201,-4645.3100000000004]
[null,null,null,null,null,null,null,null,null,null,425,1.8334965651610797,-3283.45]
[null,null,null,null,null,null,null,null,null,null,426,0.36559656493097853,10624.89]
[null,null,null,null,null,null,null,null,null,null,427,0.48702583680509276,10538.62]
[null,null,null,null,null,null,null,null,null,null,428,1.3763541795502319,-3879.57]
[null,null,null,null,null,null,null,null,null,null,429,1.4004555891341131,-4335.6099999999997]
[null,null,null,null,null,null,null,null,null,null,430,0.47864427207583943,16402.14]
[null,null,null,null,null,null,null,null,null,null,431,0.43291017249119679,5915.62]
[null,null,null,null,null,null,null,null,null,null,432,1.5484044696345627,-2702.25]
[null,null,null,null,null,null,null,null,null,null,433,0.54428801508003788,1081.82]
[null,null,null,null,null,null,null,null,null,null,434,1.2315539336964225,-4097.68]
[null,null,null,null,null,null,null,null,null,null,435,1.0541603882082071,-2173.77]
[null,null,null,null,null,null,null,null,null,null,436,0.63588051072095875,-3513.76]
[null,null,null,null,null,null,null,null,null,null,437,1.2696136557872146,-3913.48]
[null,null,null,null,null,null,null,null,null,null,438,0.5279716730992563,5231.7700000000004]
[null,null,null,null,null,null,null,null,null,null,439,0.40197456303063933,1443.91]
[null,null,null,null,null,null,null,null,null,null,440,1.6675683182085963,-2663.5]
[null,null,null,null,null,null,null,null,null,null,441,0.73934755916429662,-2743.33]
[null,null,null,null,null,null,null,null,null,null,442,0.90663726109181808,-2695.8]
[null,null,null,null,null,null,null,null,null,null,443,2.2133086616452653,-4804.8599999999997]
[null,null,null,null,null,null,null,null,null,null,444,0.30285881840689827,13928.68]
[null,null,null,null,null,null,null,null,null,null,445,0.57381799437677306,-3845.95]
[null,null,null,null,null,null,null,null,null,null,446,1.1681753667618546,-1957.53]
[null,null,null,null,null,null,null,null,null,null,447,0.43285128460230932,2092.4499999999998]
[null,null,null,null,null,null,null,null,null,null,448,1.548615124595295,-3410.66]
[null,null,null,null,null,null,null,null,null,null,449,0.78524570742525734,-2018.54]
[null,null,null,null,null,null,null,null,null,null,450,0.85364369355618752,-3588.99]
[null,null,null,null,null,null,null,null,null,null,451,1.3395268643741634,-4904.26]
[null,null,null,null,null,null,null,null,null,null,452,0.50041553018708373,9107.7999999999993]
[null,null,null,null,null,null,null,null,null,null,453,0.46416339215589486,-2726.23]
[null,null,null,null,null,null,null,null,null,null,454,1.4441467323009045,-2662.57]
[null,null,null,null,null,null,null,null,null,null,455,0.68145158495467606,-2335.2199999999998]
[null,null,null,null,null,null,null,null,null,null,456,0.98366495996956615,-3113.61]
[null,null,null,null,null,null,null,null,null,null,457,0.59233984216684732,-630.9]
[null,null,null,null,null,null,null,null,null,null,458,1.1316477439429546,-2553.3200000000002]
[null,null,null,null,null,null,null,null,null,null,459,1.4508336452134483,-3223.75]
[null,null,null,null,null,null,null,null,null,null,460,0.46202405647755751,-2394.71]
[null,null,null,null,null,null,null,null,null,null,461,1.5092914243471249,-4042.72]
[null,null,null,null,null,null,null,null,null,null,462,0.44412897020573699,-1853.39]
[null,null,null,null,null,null,null,null,null,null,463,0.89142445012415295,-2841.49]
[null,null,null,null,null,null,null,null,null,null,464,0.75196506663271379,-2638.19]
[null,null,null,null,null,null,null,null,null,null,465,1.065007615712589,-4087.67]
[null,null,null,null,null,null,null,null,null,null,466,0.62940399312274653,6677.55]
[null,null,null,null,null,null,null,null,null,null,467,0.97234006037786436,-2642.64]
[null,null,null,null,null,null,null,null,null,null,468,0.68938849004652059,-2799.01]
[null,null,null,null,null,null,null,null,null,null,469,0.54843630937430365,-2135.0500000000002]
[null,null,null,null,null,null,null,null,null,null,470,1.2222386347840257,-3548.2]
[null,null,null,null,null,null,null,null,null,null,471,0.82116355852114276,-3063.57]
[null,null,null,null,null,null,null,null,null,null,472,0.81630515514209745,-2391.65]
[null,null,null,null,null,null,null,null,null,null,473,1.8966171105350778,-4803.1499999999996]
[null,null,null,null,null,null,null,null,null,null,474,0.35342929382648375,13560.59]
[null,null,null,null,null,null,null,null,null,null,475,1.9355412285439264,-2367.7800000000002]
[null,null,null,null,null,null,null,null,null,null,476,0.34632176062708259,-3065.54]
[null,null,null,null,null,null,null,null,null,null,477,1.5431701051387394,-3062.85]
[null,null,null,null,null,null,null,null,null,null,478,0.43437858457954842,-2451.6999999999998]
[null,null,null,null,null,null,null,null,null,null,479,1.1212872312624773,-3990.03]
[null,null,null,null,null,null,null,null,null,null,480,0.59781296651430982,3168.6]
[null,null,null,null,null,null,null,null,null,null,{"$f":"K503+1","v":481},0.72961964710597416,-2064.0700000000002]
[null,null,null,null,null,null,null,null,null,null,482,0.91872532311109389,-3661.77]
[null,null,null,null,null,null,null,null,null,null,483,0.70184131727770493,-2594.1]
[null,null,null,null,null,null,null,null,null,null,484,0.9550877520800134,-2850.85]
[null,null,null,null,null,null,null,null,null,null,485,1.2178073432169463,-3520.96]
[null,null,null,null,null,null,null,null,null,null,486,0.55043192978696343,-782.63]
[null,null,null,null,null,null,null,null,null,null,487,0.955600535795183,-2408.9]
[null,null,null,null,null,null,null,null,null,null,488,0.70146470300777486,-3053.73]
[null,null,null,null,null,null,null,null,null,null,489,0.29655052600671733,11137.5]
[null,null,null,null,null,null,null,null,null,null,490,2.2603906830381231,-4284.55]
[null,null,null,null,null,null,null,null,null,null,491,1.8589622357915521,-4132.43]
[null,null,null,null,null,null,null,null,null,null,492,0.36058830735214709,13615.84]
[null,null,null,null,null,null,null,null,null,null,493,0.20220362545532236,25849.42]
[null,null,null,null,null,null,null,null,null,null,494,3.3150743193956638,-5522.16]
[null,null,null,null,null,null,null,null,null,null,495,1.2200634739344134,-4091.68]
[null,null,null,null,null,null,null,null,null,null,496,0.54941407587100055,-1823.47]
[null,null,null,null,null,null,null,null,null,null,497,2.7527395896810027,-3498.81]
[null,null,null,null,null,null,null,null,null,null,498,0.24351015568215004,12655.51]
[null,null,null,null,null,null,null,null,null,null,499,0.1722977737871251,19184.86]
[null,null,null,null,null,null,null,null,null,null,500,3.8904742139258457,-3418.15]
[null,null,null,null,null,null,null,null,null,null,501]
[null,null,null,null,null,null,null,null,null,null,502]
[null,null,null,null,null,null,null,null,null,null,503]
[null,null,null,null,null,null,null,null,null,null,504]
[null,null,null,null,null,null,null,null,null,null,505]
[null,null,null,null,null,null,null,null,null,null,506]
[null,null,null,null,null,null,null,null,null,null,507]
[null,null,null,null,null,null,null,null,null,null,508]
[null,null,null,null,null,null,null,null,null,null,509]
[null,null,null,null,null,null,null,null,null,null,510]
[null,null,null,null,null,null,null,null,null,null,511]
[null,null,null,null,null,null,null,null,null,null,512]
[null,null,null,null,null,null,null,null,null,null,513]
[null,null,null,null,null,null,null,null,null,null,514]
[null,null,null,null,null,null,null,null,null,null,515]
[null,null,null,null,null,null,null,null,null,null,516]
[null,null,null,null,null,null,null,null,null,null,517]
[null,null,null,null,null,null,null,null,null,null,518]
[null,null,null,null,null,null,null,null,null,null,519]
[null,null,null,null,null,null,null,null,null,null,520]
[null,null,null,null,null,null,null,null,null,null,521]
[null,null,null,null,null,null,null,null,null,null,522]
[null,null,null,null,null,null,null,null,null,null,523]
[null,null,null,null,null,null,null,null,null,null,524]
[null,null,null,null,null,null,null,null,null,null,525]
[null,null,null,null,null,null,null,null,null,null,526]
[null,null,null,null,null,null,null,null,null,null,527]
[null,null,null,null,null,null,null,null,null,null,528]
[null,null,null,null,null,null,null,null,null,null,529]
[null,null,null,null,null,null,null,null,null,null,530]
[null,null,null,null,null,null,null,null,null,null,531]
[null,null,null,null,null,null,null,null,null,null,532]
[null,null,null,null,null,null,null,null,null,null,533]
[null,null,null,null,null,null,null,null,null,null,534]
[null,null,null,null,null,null,null,null,null,null,535]
[null,null,null,null,null,null,null,null,null,null,536]
[null,null,null,null,null,null,null,null,null,null,537]
[null,null,null,null,null,null,null,null,null,null,538]
[null,null,null,null,null,null,null,null,null,null,539]
[null,null,null,null,null,null,null,null,null,null,540]
[null,null,null,null,null,null,null,null,null,null,541]
[null,null,null,null,null,null,null,null,null,null,542]
[null,null,null,null,null,null,null,null,null,null,543]
[null,null,null,null,null,null,null,null,null,null,544]
[null,null,null,null,null,null,null,null,null,null,{"$f":"K567+1","v":545}]
[null,null,null,null,null,null,null,null,null,null,546]
[null,null,null,null,null,null,null,null,null,null,547]
[null,null,null,null,null,null,null,null,null,null,548]
[null,null,null,null,null,null,null,null,null,null,549]
[null,null,null,null,null,null,null,null,null,null,550]
[null,null,null,null,null,null,null,null,null,null,551]
[null,null,null,null,null,null,null,null,null,null,552]
[null,null,null,null,null,null,null,null,null,null,553]
[null,null,null,null,null,null,null,null,null,null,554]
[null,null,null,null,null,null,null,null,null,null,555]
[null,null,null,null,null,null,null,null,null,null,556]
[null,null,null,null,null,null,null,null,null,null,557]
[null,null,null,null,null,null,null,null,null,null,558]
[null,null,null,null,null,null,null,null,null,null,559]
[null,null,null,null,null,null,null,null,null,null,560]
[null,null,null,null,null,null,null,null,null,null,561]
[null,null,null,null,null,null,null,null,null,null,562]
[null,null,null,null,null,null,null,null,null,null,563]
[null,null,null,null,null,null,null,null,null,null,564]
[null,null,null,null,null,null,null,null,null,null,565]
[null,null,null,null,null,null,null,null,null,null,566]
[null,null,null,null,null,null,null,null,null,null,567]
[null,null,null,null,null,null,null,null,null,null,568]
[null,null,null,null,null,null,null,null,null,null,569]
[null,null,null,null,null,null,null,null,null,null,570]
[null,null,null,null,null,null,null,null,null,null,571]
[null,null,null,null,null,null,null,null,null,null,572]
[null,null,null,null,null,null,null,null,null,null,573]
[null,null,null,null,null,null,null,null,null,null,574]
[null,null,null,null,null,null,null,null,null,null,575]
[null,null,null,null,null,null,null,null,null,null,576]
[null,null,null,null,null,null,null,null,null,null,577]
[null,null,null,null,null,null,null,null,null,null,578]
[null,null,null,null,null,null,null,null,null,null,579]
[null,null,null,null,null,null,null,null,null,null,580]
[null,null,null,null,null,null,null,null,null,null,581]
[null,null,null,null,null,null,null,null,null,null,582]
[null,null,null,null,null,null,null,null,null,null,583]
[null,null,null,null,null,null,null,null,null,null,584]
[null,null,null,null,null,null,null,null,null,null,585]
[null,null,null,null,null,null,null,null,null,null,586]
[null,null,null,null,null,null,null,null,null,null,587]
[null,null,null,null,null,null,null,null,null,null,588]
[null,null,null,null,null,null,null,null,null,null,589]
[null,null,null,null,null,null,null,null,null,null,590]
[null,null,null,null,null,null,null,null,null,null,591]
[null,null,null,null,null,null,null,null,null,null,592]
[null,null,null,null,null,null,null,null,null,null,593]
[null,null,null,null,null,null,null,null,null,null,594]
[null,null,null,null,null,null,null,null,null,null,595]
[null,null,null,null,null,null,null,null,null,null,596]
[null,null,null,null,null,null,null,null,null,null,597]
[null,null,null,null,null,null,null,null,null,null,598]
[null,null,null,null,null,null,null,null,null,null,599]
[null,null,null,null,null,null,null,null,null,null,600]
[null,null,null,null,null,null,null,null,null,null,601]
[null,null,null,null,null,null,null,null,null,null,602]
[null,null,null,null,null,null,null,null,null,null,603]
[null,null,null,null,null,null,null,null,null,null,604]
[null,null,null,null,null,null,null,null,null,null,605]
[null,null,null,null,null,null,null,null,null,null,606]
[null,null,null,null,null,null,null,null,null,null,607]
[null,null,null,null,null,null,null,null,null,null,608]
[null,null,null,null,null,null,null,null,null,null,{"$f":"K631+1","v":609}]
[null,null,null,null,null,null,null,null,null,null,610]
[null,null,null,null,null,null,null,null,null,null,611]
[null,null,null,null,null,null,null,null,null,null,612]
[null,null,null,null,null,null,null,null,null,null,613]
[null,null,null,null,null,null,null,null,null,null,614]
[null,null,null,null,null,null,null,null,null,null,615]
[null,null,null,null,null,null,null,null,null,null,616]
[null,null,null,null,null,null,null,null,null,null,617]
[null,null,null,null,null,null,null,null,null,null,618]
[null,null,null,null,null,null,null,null,null,null,619]
[null,null,null,null,null,null,null,null,null,null,620]
[null,null,null,null,null,null,null,null,null,null,621]
[null,null,null,null,null,null,null,null,null,null,622]
[null,null,null,null,null,null,null,null,null,null,623]
[null,null,null,null,null,null,null,null,null,null,624]
[null,null,null,null,null,null,null,null,null,null,625]
[null,null,null,null,null,null,null,null,null,null,626]
[null,null,null,null,null,null,null,null,null,null,627]
[null,null,null,null,null,null,null,null,null,null,628]
[null,null,null,null,null,null,null,null,null,null,629]
[null,null,null,null,null,null,null,null,null,null,630]
[null,null,null,null,null,null,null,null,null,null,631]
[null,null,null,null,null,null,null,null,null,null,632]
[null,null,null,null,null,null,null,null,null,null,633]
[null,null,null,null,null,null,null,null,null,null,634]
[null,null,null,null,null,null,null,null,null,null,635]
[null,null,null,null,null,null,null,null,null,null,636]
[null,null,null,null,null,null,null,null,null,null,637]
[null,null,null,null,null,null,null,null,null,null,638]
[null,null,null,null,null,null,null,null,null,null,639]
[null,null,null,null,null,null,null,null,null,null,640]
[null,null,null,null,null,null,null,null,null,null,641]
[null,null,null,null,null,null,null,null,null,null,642]
[null,null,null,null,null,null,null,null,null,null,643]
[null,null,null,null,null,null,null,null,null,null,644]
[null,null,null,null,null,null,null,null,null,null,645]
[null,null,null,null,null,null,null,null,null,null,646]
[null,null,null,null,null,null,null,null,null,null,647]
[null,null,null,null,null,null,null,null,null,null,648]
[null,null,null,null,null,null,null,null,null,null,649]
[null,null,null,null,null,null,null,null,null,null,650]
[null,null,null,null,null,null,null,null,null,null,651]
[null,null,null,null,null,null,null,null,null,null,652]
[null,null,null,null,null,null,null,null,null,null,653]
[null,null,null,null,null,null,null,null,null,null,654]
[null,null,null,null,null,null,null,null,null,null,655]
[null,null,null,null,null,null,null,null,null,null,656]
[null,null,null,null,null,null,null,null,null,null,657]
[null,null,null,null,null,null,null,null,null,null,658]
[null,null,null,null,null,null,null,null,null,null,659]
[null,null,null,null,null,null,null,null,null,null,660]
[null,null,null,null,null,null,null,null,null,null,661]
[null,null,null,null,null,null,null,null,null,null,662]
[null,null,null,null,null,null,null,null,null,null,663]
[null,null,null,null,null,null,null,null,null,null,664]
[null,null,null,null,null,null,null,null,null,null,665]
[null,null,null,null,null,null,null,null,null,null,666]
[null,null,null,null,null,null,null,null,null,null,667]
[null,null,null,null,null,null,null,null,null,null,668]
[null,null,null,null,null,null,null,null,null,null,669]
[null,null,null,null,null,null,null,null,null,null,670]
[null,null,null,null,null,null,null,null,null,null,671]
[null,null,null,null,null,null,null,null,null,null,672]
[null,null,null,null,null,null,null,null,null,null,{"$f":"K695+1","v":673}]
[null,null,null,null,null,null,null,null,null,null,674]
[null,null,null,null,null,null,null,null,null,null,675]
[null,null,null,null,null,null,null,null,null,null,676]
[null,null,null,null,null,null,null,null,null,null,677]
[null,null,null,null,null,null,null,null,null,null,678]
[null,null,null,null,null,null,null,null,null,null,679]
[null,null,null,null,null,null,null,null,null,null,680]
[null,null,null,null,null,null,null,null,null,null,681]
[null,null,null,null,null,null,null,null,null,null,682]
[null,null,null,null,null,null,null,null,null,null,683]
[null,null,null,null,null,null,null,null,null,null,684]
[null,null,null,null,null,null,null,null,null,null,685]
[null,null,null,null,null,null,null,null,null,null,686]
[null,null,null,null,null,null,null,null,null,null,687]
[null,null,null,null,null,null,null,null,null,null,688]
[null,null,null,null,null,null,null,null,null,null,689]
[null,null,null,null,null,null,null,null,null,null,690]
[null,null,null,null,null,null,null,null,null,null,691]
[null,null,null,null,null,null,null,null,null,null,692]
[null,null,null,null,null,null,null,null,null,null,693]
[null,null,null,null,null,null,null,null,null,null,694]
[null,null,null,null,null,null,null,null,null,null,695]
[null,null,null,null,null,null,null,null,null,null,696]
[null,null,null,null,null,null,null,null,null,null,697]
[null,null,null,null,null,null,null,null,null,null,698]
[null,null,null,null,null,null,null,null,null,null,699]
[null,null,null,null,null,null,null,null,null,null,700]
[null,null,null,null,null,null,null,null,null,null,701]
[null,null,null,null,null,null,null,null,null,null,702]
[null,null,null,null,null,null,null,null,null,null,703]
[null,null,null,null,null,null,null,null,null,null,704]
[null,null,null,null,null,null,null,null,null,null,705]
[null,null,null,null,null,null,null,null,null,null,706]
[null,null,null,null,null,null,null,null,null,null,707]
[null,null,null,null,null,null,null,null,null,null,708]
[null,null,null,null,null,null,null,null,null,null,709]
[null,null,null,null,null,null,null,null,null,null,710]
[null,null,null,null,null,null,null,null,null,null,711]
[null,null,null,null,null,null,null,null,null,null,712]
[null,null,null,null,null,null,null,null,null,null,713]
[null,null,null,null,null,null,null,null,null,null,714]
[null,null,null,null,null,null,null,null,null,null,715]
[null,null,null,null,null,null,null,null,null,null,716]
[null,null,null,null,null,null,null,null,null,null,717]
[null,null,null,null,null,null,null,null,null,null,718]
[null,null,null,null,null,null,null,null,null,null,719]
[null,null,null,null,null,null,null,null,null,null,720]
[null,null,null,null,null,null,null,null,null,null,721]
[null,null,null,null,null,null,null,null,null,null,722]
[null,null,null,null,null,null,null,null,null,null,723]
[null,null,null,null,null,null,null,null,null,null,724]
[null,null,null,null,null,null,null,null,null,null,725]
[null,null,null,null,null,null,null,null,null,null,726]
[null,null,null,null,null,null,null,null,null,null,727]
[null,null,null,null,null,null,null,null,null,null,728]
[null,null,null,null,null,null,null,null,null,null,729]
[null,null,null,null,null,null,null,null,null,null,730]
[null,null,null,null,null,null,null,null,null,null,731]
[null,null,null,null,null,null,null,null,null,null,732]
[null,null,null,null,null,null,null,null,null,null,733]
[null,null,null,null,null,null,null,null,null,null,734]
[null,null,null,null,null,null,null,null,null,null,735]
[null,null,null,null,null,null,null,null,null,null,736]
[null,null,null,null,null,null,null,null,null,null,{"$f":"K759+1","v":737}]
[null,null,null,null,null,null,null,null,null,null,738]
[null,null,null,null,null,null,null,null,null,null,739]
[null,null,null,null,null,null,null,null,null,null,740]
[null,null,null,null,null,null,null,null,null,null,741]
[null,null,null,null,null,null,null,null,null,null,742]
[null,null,null,null,null,null,null,null,null,null,743]
[null,null,null,null,null,null,null,null,null,null,744]
[null,null,null,null,null,null,null,null,null,null,745]
[null,null,null,null,null,null,null,null,null,null,746]
[null,null,null,null,null,null,null,null,null,null,747]
[null,null,null,null,null,null,null,null,null,null,748]
[null,null,null,null,null,null,null,null,null,null,749]
[null,null,null,null,null,null,null,null,null,null,750]
[null,null,null,null,null,null,null,null,null,null,751]
[null,null,null,null,null,null,null,null,null,null,752]
[null,null,null,null,null,null,null,null,null,null,753]
[null,null,null,null,null,null,null,null,null,null,754]
[null,null,null,null,null,null,null,null,null,null,755]
[null,null,null,null,null,null,null,null,null,null,756]
[null,null,null,null,null,null,null,null,null,null,757]
[null,null,null,null,null,null,null,null,null,null,758]
[null,null,null,null,null,null,null,null,null,null,759]
[null,null,null,null,null,null,null,null,null,null,760]
[null,null,null,null,null,null,null,null,null,null,761]
[null,null,null,null,null,null,null,null,null,null,762]
[null,null,null,null,null,null,null,null,null,null,763]
[null,null,null,null,null,null,null,null,null,null,764]
[null,null,null,null,null,null,null,null,null,null,765]
[null,null,null,null,null,null,null,null,null,null,766]
[null,null,null,null,null,null,null,null,null,null,767]
[null,null,null,null,null,null,null,null,null,null,768]
[null,null,null,null,null,null,null,null,null,null,769]
[null,null,null,null,null,null,null,null,null,null,770]
[null,null,null,null,null,null,null,null,null,null,771]
[null,null,null,null,null,null,null,null,null,null,772]
[null,null,null,null,null,null,null,null,null,null,773]
[null,null,null,null,null,null,null,null,null,null,774]
[null,null,null,null,null,null,null,null,null,null,775]
[null,null,null,null,null,null,null,null,null,null,776]
[null,null,null,null,null,null,null,null,null,null,777]
[null,null,null,null,null,null,null,null,null,null,778]
[null,null,null,null,null,null,null,null,null,null,779]
[null,null,null,null,null,null,null,null,null,null,780]
[null,null,null,null,null,null,null,null,null,null,781]
[null,null,null,null,null,null,null,null,null,null,782]
[null,null,null,null,null,null,null,null,null,null,783]
[null,null,null,null,null,null,null,null,null,null,784]
[null,null,null,null,null,null,null,null,null,null,785]
[null,null,null,null,null,null,null,null,null,null,786]
[null,null,null,null,null,null,null,null,null,null,787]
[null,null,null,null,null,null,null,null,null,null,788]
[null,null,null,null,null,null,null,null,null,null,789]
[null,null,null,null,null,null,null,null,null,null,790]
[null,null,null,null,null,null,null,null,null,null,791]
[null,null,null,null,null,null,null,null,null,null,792]
[null,null,null,null,null,null,null,null,null,null,793]
[null,null,null,null,null,null,null,null,null,null,794]
[null,null,null,null,null,null,null,null,null,null,795]
[null,null,null,null,null,null,null,null,null,null,796]
[null,null,null,null,null,null,null,null,null,null,797]
[null,null,null,null,null,null,null,null,null,null,798]
[null,null,null,null,null,null,null,null,null,null,799]
[null,null,null,null,null,null,null,null,null,null,800]
[null,null,null,null,null,null,null,null,null,null,{"$f":"K823+1","v":801}]
[null,null,null,null,null,null,null,null,null,null,802]
[null,null,null,null,null,null,null,null,null,null,803]
[null,null,null,null,null,null,null,null,null,null,804]
[null,null,null,null,null,null,null,null,null,null,805]
[null,null,null,null,null,null,null,null,null,null,806]
[null,null,null,null,null,null,null,null,null,null,807]
[null,null,null,null,null,null,null,null,null,null,808]
[null,null,null,null,null,null,null,null,null,null,809]
[null,null,null,null,null,null,null,null,null,null,810]
[null,null,null,null,null,null,null,null,null,null,811]
[null,null,null,null,null,null,null,null,null,null,812]
[null,null,null,null,null,null,null,null,null,null,813]
[null,null,null,null,null,null,null,null,null,null,814]
[null,null,null,null,null,null,null,null,null,null,815]
[null,null,null,null,null,null,null,null,null,null,816]
[null,null,null,null,null,null,null,null,null,null,817]
[null,null,null,null,null,null,null,null,null,null,818]
[null,null,null,null,null,null,null,null,null,null,819]
[null,null,null,null,null,null,null,null,null,null,820]
[null,null,null,null,null,null,null,null,null,null,821]
[null,null,null,null,null,null,null,null,null,null,822]
[null,null,null,null,null,null,null,null,null,null,823]
[null,null,null,null,null,null,null,null,null,null,824]
[null,null,null,null,null,null,null,null,null,null,825]
[null,null,null,null,null,null,null,null,null,null,826]
[null,null,null,null,null,null,null,null,null,null,827]
[null,null,null,null,null,null,null,null,null,null,828]
[null,null,null,null,null,null,null,null,null,null,829]
[null,null,null,null,null,null,null,null,null,null,830]
[null,null,null,null,null,null,null,null,null,null,831]
[null,null,null,null,null,null,null,null,null,null,832]
[null,null,null,null,null,null,null,null,null,null,833]
[null,null,null,null,null,null,null,null,null,null,834]
[null,null,null,null,null,null,null,null,null,null,835]
[null,null,null,null,null,null,null,null,null,null,836]
[null,null,null,null,null,null,null,null,null,null,837]
[null,null,null,null,null,null,null,null,null,null,838]
[null,null,null,null,null,null,null,null,null,null,839]
[null,null,null,null,null,null,null,null,null,null,840]
[null,null,null,null,null,null,null,null,null,null,841]
[null,null,null,null,null,null,null,null,null,null,842]
[null,null,null,null,null,null,null,null,null,null,843]
[null,null,null,null,null,null,null,null,null,null,844]
[null,null,null,null,null,null,null,null,null,null,845]
[null,null,null,null,null,null,null,null,null,null,846]
[null,null,null,null,null,null,null,null,null,null,847]
[null,null,null,null,null,null,null,null,null,null,848]
[null,null,null,null,null,null,null,null,null,null,849]
[null,null,null,null,null,null,null,null,null,null,850]
[null,null,null,null,null,null,null,null,null,null,851]
[null,null,null,null,null,null,null,null,null,null,852]
[null,null,null,null,null,null,null,null,null,null,853]
[null,null,null,null,null,null,null,null,null,null,854]
[null,null,null,null,null,null,null,null,null,null,855]
[null,null,null,null,null,null,null,null,null,null,856]
[null,null,null,null,null,null,null,null,null,null,857]
[null,null,null,null,null,null,null,null,null,null,858]
[null,null,null,null,null,null,null,null,null,null,859]
[null,null,null,null,null,null,null,null,null,null,860]
[null,null,null,null,null,null,null,null,null,null,861]
[null,null,null,null,null,null,null,null,null,null,862]
[null,null,null,null,null,null,null,null,null,null,863]
[null,null,null,null,null,null,null,null,null,null,864]
[null,null,null,null,null,null,null,null,null,null,{"$f":"K887+1","v":865}]
[null,null,null,null,null,null,null,null,null,null,866]
[null,null,null,null,null,null,null,null,null,null,867]
[null,null,null,null,null,null,null,null,null,null,868]
[null,null,null,null,null,null,null,null,null,null,869]
[null,null,null,null,null,null,null,null,null,null,870]
[null,null,null,null,null,null,null,null,null,null,871]
[null,null,null,null,null,null,null,null,null,null,872]
[null,null,null,null,null,null,null,null,null,null,873]
[null,null,null,null,null,null,null,null,null,null,874]
[null,null,null,null,null,null,null,null,null,null,875]
[null,null,null,null,null,null,null,null,null,null,876]
[null,null,null,null,null,null,null,null,null,null,877]
[null,null,null,null,null,null,null,null,null,null,878]
[null,null,null,null,null,null,null,null,null,null,879]
[null,null,null,null,null,null,null,null,null,null,880]
[null,null,null,null,null,null,null,null,null,null,881]
[null,null,null,null,null,null,null,null,null,null,882]
[null,null,null,null,null,null,null,null,null,null,883]
[null,null,null,null,null,null,null,null,null,null,884]
[null,null,null,null,null,null,null,null,null,null,885]
[null,null,null,null,null,null,null,null,null,null,886]
[null,null,null,null,null,null,null,null,null,null,887]
[null,null,null,null,null,null,null,null,null,null,888]
[null,null,null,null,null,null,null,null,null,null,889]
[null,null,null,null,null,null,null,null,null,null,890]
[null,null,null,null,null,null,null,null,null,null,891]
[null,null,null,null,null,null,null,null,null,null,892]
[null,null,null,null,null,null,null,null,null,null,893]
[null,null,null,null,null,null,null,null,null,null,894]
[null,null,null,null,null,null,null,null,null,null,895]
[null,null,null,null,null,null,null,null,null,null,896]
[null,null,null,null,null,null,null,null,null,null,897]
[null,null,null,null,null,null,null,null,null,null,898]
[null,null,null,null,null,null,null,null,null,null,899]
[null,null,null,null,null,null,null,null,null,null,900]
[null,null,null,null,null,null,null,null,null,null,901]
[null,null,null,null,null,null,null,null,null,null,902]
[null,null,null,null,null,null,null,null,null,null,903]
[null,null,null,null,null,null,null,null,null,null,904]
[null,null,null,null,null,null,null,null,null,null,905]
[null,null,null,null,null,null,null,null,null,null,906]
[null,null,null,null,null,null,null,null,null,null,907]
[null,null,null,null,null,null,null,null,null,null,908]
[null,null,null,null,null,null,null,null,null,null,909]
[null,null,null,null,null,null,null,null,null,null,910]
[null,null,null,null,null,null,null,null,null,null,911]
[null,null,null,null,null,null,null,null,null,null,912]
[null,null,null,null,null,null,null,null,null,null,913]
[null,null,null,null,null,null,null,null,null,null,914]
[null,null,null,null,null,null,null,null,null,null,915]
[null,null,null,null,null,null,null,null,null,null,916]
[null,null,null,null,null,null,null,null,null,null,917]
[null,null,null,null,null,null,null,null,null,null,918]
[null,null,null,null,null,null,null,null,null,null,919]
[null,null,null,null,null,null,null,null,null,null,920]
[null,null,null,null,null,null,null,null,null,null,921]
[null,null,null,null,null,null,null,null,null,null,922]
[null,null,null,null,null,null,null,null,null,null,923]
[null,null,null,null,null,null,null,null,null,null,924]
[null,null,null,null,null,null,null,null,null,null,925]
[null,null,null,null,null,null,null,null,null,null,926]
[null,null,null,null,null,null,null,null,null,null,927]
[null,null,null,null,null,null,null,null,null,null,928]
[null,null,null,null,null,null,null,null,null,null,{"$f":"K951+1","v":929}]
[null,null,null,null,null,null,null,null,null,null,930]
[null,null,null,null,null,null,null,null,null,null,931]
[null,null,null,null,null,null,null,null,null,null,932]
[null,null,null,null,null,null,null,null,null,null,933]
[null,null,null,null,null,null,null,null,null,null,934]
[null,null,null,null,null,null,null,null,null,null,935]
[null,null,null,null,null,null,null,null,null,null,936]
[null,null,null,null,null,null,null,null,null,null,937]
[null,null,null,null,null,null,null,null,null,null,938]
[null,null,null,null,null,null,null,null,null,null,939]
[null,null,null,null,null,null,null,null,null,null,940]
[null,null,null,null,null,null,null,null,null,null,941]
[null,null,null,null,null,null,null,null,null,null,942]
[null,null,null,null,null,null,null,null,null,null,943]
[null,null,null,null,null,null,null,null,null,null,944]
[null,null,null,null,null,null,null,null,null,null,945]
[null,null,null,null,null,null,null,null,null,null,946]
[null,null,null,null,null,null,null,null,null,null,947]
[null,null,null,null,null,null,null,null,null,null,948]
[null,null,null,null,null,null,null,null,null,null,949]
[null,null,null,null,null,null,null,null,null,null,950]
[null,null,null,null,null,null,null,null,null,null,951]
[null,null,null,null,null,null,null,null,null,null,952]
[null,null,null,null,null,null,null,null,null,null,953]
[null,null,null,null,null,null,null,null,null,null,954]
[null,null,null,null,null,null,null,null,null,null,955]
[null,null,null,null,null,null,null,null,null,null,956]
[null,null,null,null,null,null,null,null,null,null,957]
[null,null,null,null,null,null,null,null,null,null,958]
[null,null,null,null,null,null,null,null,null,null,959]
[null,null,null,null,null,null,null,null,null,null,960]
[null,null,null,null,null,null,null,null,null,null,961]
[null,null,null,null,null,null,null,null,null,null,962]
[null,null,null,null,null,null,null,null,null,null,963]
[null,null,null,null,null,null,null,null,null,null,964]
[null,null,null,null,null,null,null,null,null,null,965]
[null,null,null,null,null,null,null,null,null,null,966]
[null,null,null,null,null,null,null,null,null,null,967]
[null,null,null,null,null,null,null,null,null,null,968]
[null,null,null,null,null,null,null,null,null,null,969]
[null,null,null,null,null,null,null,null,null,null,970]
[null,null,null,null,null,null,null,null,null,null,971]
[null,null,null,null,null,null,null,null,null,null,972]
[null,null,null,null,null,null,null,null,null,null,973]
[null,null,null,null,null,null,null,null,null,null,974]
[null,null,null,null,null,null,null,null,null,null,975]
[null,null,null,null,null,null,null,null,null,null,976]
[null,null,null,null,null,null,null,null,null,null,977]
[null,null,null,null,null,null,null,null,null,null,978]
[null,null,null,null,null,null,null,null,null,null,979]
[null,null,null,null,null,null,null,null,null,null,980]
[null,null,null,null,null,null,null,null,null,null,981]
[null,null,null,null,null,null,null,null,null,null,982]
[null,null,null,null,null,null,null,null,null,null,983]
[null,null,null,null,null,null,null,null,null,null,984]
[null,null,null,null,null,null,null,null,null,null,985]
[null,null,null,null,null,null,null,null,null,null,986]
[null,null,null,null,null,null,null,null,null,null,987]
[null,null,null,null,null,null,null,null,null,null,988]
[null,null,null,null,null,null,null,null,null,null,989]
[null,null,null,null,null,null,null,null,null,null,990]
[null,null,null,null,null,null,null,null,null,null,991]
[null,null,null,null,null,null,null,null,null,null,992]
[null,null,null,null,null,null,null,null,null,null,{"$f":"K1015+1","v":993}]
[null,null,null,null,null,null,null,null,null,null,994]
[null,null,null,null,null,null,null,null,null,null,995]
[null,null,null,null,null,null,null,null,null,null,996]
[null,null,null,null,null,null,null,null,null,null,997]
[null,null,null,null,null,null,null,null,null,null,998]
[null,null,null,null,null,null,null,null,null,null,999]
[null,null,null,null,null,null,null,null,null,null,1000]